Department family,Entity,Date,Expense type,Expense area,Supplier,Transaction number,Amount,VAT registration number
Department for Business Innovation and Skills,Intellectual Property Office,03/08/2015,Supporting UK Business,Copyright and Enforcement Directorate,Creative Content UK Partnership Ltd,1,378823.68,Not Applicable
Department for Business Innovation and Skills,Intellectual Property Office,24/08/2015,Staff Costs,People Places & Services Directorate,"Face 2 Face Psychotherapy, Training and",3,400,Not Applicable
Department for Business Innovation and Skills,Intellectual Property Office,26/08/2015,Marketing & Publicity,Innovation Directorate,Jigsaw (PMS) Ltd,31,42,Not Applicable
Department for Business Innovation and Skills,Intellectual Property Office,10/08/2015,Marketing & Publicity,Innovation Directorate,DAN ANTHONY PRESENTATIONS LTD,117,4000,Not Applicable
Department for Business Innovation and Skills,Intellectual Property Office,26/08/2015,Marketing & Publicity,Innovation Directorate,GM Business Support Ltd,330,600,Not Applicable
Department for Business Innovation and Skills,Intellectual Property Office,18/08/2015,Staff Costs,People Places & Services Directorate,ChangeQuest Ltd,609,3108,Not Applicable
Department for Business Innovation and Skills,Intellectual Property Office,07/08/2015,Agency Staff,Projects,Accountancy Recruitment Wales,1777,575.64,Not Applicable
Department for Business Innovation and Skills,Intellectual Property Office,07/08/2015,Agency Staff,Projects,Accountancy Recruitment Wales,1778,628.4,Not Applicable
Department for Business Innovation and Skills,Intellectual Property Office,14/08/2015,Agency Staff,Projects,Accountancy Recruitment Wales,1784,575.64,Not Applicable
Department for Business Innovation and Skills,Intellectual Property Office,24/08/2015,Marketing & Publicity,Innovation Directorate,SGA Productions Ltd,2018,2158.44,Not Applicable
Department for Business Innovation and Skills,Intellectual Property Office,13/08/2015,Information Technology,IT Directorate,Capax Discovery,2241,4392,Not Applicable
Department for Business Innovation and Skills,Intellectual Property Office,10/08/2015,Supporting UK Business,Innovation Directorate,3volution LLP,2733,2600,Not Applicable
Department for Business Innovation and Skills,Intellectual Property Office,10/08/2015,Supporting UK Business,Innovation Directorate,Ancient Hume Ltd,3248,3000,Not Applicable
Department for Business Innovation and Skills,Intellectual Property Office,28/08/2015,Information Technology,Innovation Directorate,Sedao Ltd,3834,910.8,Not Applicable
Department for Business Innovation and Skills,Intellectual Property Office,03/08/2015,Travel & Subsistence,People Places & Services Directorate,Veezu Ltd T/A Dragon Taxis (Newport),4203,15.6,Not Applicable
Department for Business Innovation and Skills,Intellectual Property Office,03/08/2015,Travel & Subsistence,People Places & Services Directorate,Veezu Ltd T/A Dragon Taxis (Newport),4203,21.6,Not Applicable
Department for Business Innovation and Skills,Intellectual Property Office,03/08/2015,Travel & Subsistence,Copyright and Enforcement Directorate,Veezu Ltd T/A Dragon Taxis (Newport),4203,214.5,Not Applicable
Department for Business Innovation and Skills,Intellectual Property Office,03/08/2015,Travel & Subsistence,Copyright and Enforcement Directorate,Veezu Ltd T/A Dragon Taxis (Newport),4203,7.8,Not Applicable
Department for Business Innovation and Skills,Intellectual Property Office,03/08/2015,Travel & Subsistence,Innovation Directorate,Veezu Ltd T/A Dragon Taxis (Newport),4203,85.8,Not Applicable
Department for Business Innovation and Skills,Intellectual Property Office,03/08/2015,Travel & Subsistence,International Policy Directorate,Veezu Ltd T/A Dragon Taxis (Newport),4203,76.2,Not Applicable
Department for Business Innovation and Skills,Intellectual Property Office,03/08/2015,Travel & Subsistence,IT Directorate,Veezu Ltd T/A Dragon Taxis (Newport),4203,15.6,Not Applicable
Department for Business Innovation and Skills,Intellectual Property Office,03/08/2015,Travel & Subsistence,Finance Directorate,Veezu Ltd T/A Dragon Taxis (Newport),4203,7.8,Not Applicable
Department for Business Innovation and Skills,Intellectual Property Office,03/08/2015,Travel & Subsistence,Innovation Directorate,Veezu Ltd T/A Dragon Taxis (Newport),4203,7.8,Not Applicable
Department for Business Innovation and Skills,Intellectual Property Office,03/08/2015,Travel & Subsistence,Patents Directorate,Veezu Ltd T/A Dragon Taxis (Newport),4203,15.6,Not Applicable
Department for Business Innovation and Skills,Intellectual Property Office,03/08/2015,Travel & Subsistence,Patents Directorate,Veezu Ltd T/A Dragon Taxis (Newport),4203,7.8,Not Applicable
Department for Business Innovation and Skills,Intellectual Property Office,03/08/2015,Travel & Subsistence,Trade Marks Directorate,Veezu Ltd T/A Dragon Taxis (Newport),4203,7.8,Not Applicable
Department for Business Innovation and Skills,Intellectual Property Office,03/08/2015,Travel & Subsistence,International Policy Directorate,Veezu Ltd T/A Dragon Taxis (Newport),4203,127.8,Not Applicable
Department for Business Innovation and Skills,Intellectual Property Office,24/08/2015,Information Technology,IT Directorate,Gov Delivery,4600,2499,Not Applicable
Department for Business Innovation and Skills,Intellectual Property Office,27/08/2015,Staff Costs,People Places & Services Directorate,Thomas Carroll Management Services Ltd,5124,660,Not Applicable
Department for Business Innovation and Skills,Intellectual Property Office,24/08/2015,Miscellaneous Expenses General,People Places & Services Directorate,Thomas Carroll Management Services Ltd,5168,2142,Not Applicable
Department for Business Innovation and Skills,Intellectual Property Office,19/08/2015,Accommodation,People Places & Services Directorate,Kemp Construction Ltd,6097,1454.4,Not Applicable
Department for Business Innovation and Skills,Intellectual Property Office,19/08/2015,Accommodation,People Places & Services Directorate,Kemp Construction Ltd,6097,3506.4,Not Applicable
Department for Business Innovation and Skills,Intellectual Property Office,19/08/2015,Accommodation,People Places & Services Directorate,Kemp Construction Ltd,6098,2314.8,Not Applicable
Department for Business Innovation and Skills,Intellectual Property Office,19/08/2015,Accommodation,People Places & Services Directorate,Kemp Construction Ltd,6099,18089.93,Not Applicable
Department for Business Innovation and Skills,Intellectual Property Office,05/08/2015,Staff Costs,IT Directorate,Agil8 Ltd,6335,3000,Not Applicable
Department for Business Innovation and Skills,Intellectual Property Office,05/08/2015,Information Technology,IT Directorate,Questmark Ltd,9283,198,Not Applicable
Department for Business Innovation and Skills,Intellectual Property Office,05/08/2015,Information Technology,IT Directorate,Satisnet Ltd,10331,35232,Not Applicable
Department for Business Innovation and Skills,Intellectual Property Office,18/08/2015,Staff Costs,People Places & Services Directorate,TMS Development International Ltd,10468,1812.55,Not Applicable
Department for Business Innovation and Skills,Intellectual Property Office,05/08/2015,Information Technology,Innovation Directorate,Ghost Digital Ltd,10621,21504,Not Applicable
Department for Business Innovation and Skills,Intellectual Property Office,19/08/2015,Marketing & Publicity,Innovation Directorate,Friends House (London) Hospitality Ltd,10895,1127,Not Applicable
Department for Business Innovation and Skills,Intellectual Property Office,27/08/2015,Staff Costs,People Places & Services Directorate,TRANSMEDIA.CO.UK,12124,3852,Not Applicable
Department for Business Innovation and Skills,Intellectual Property Office,05/08/2015,Accommodation,People Places & Services Directorate,Wastesavers Ltd,12629,125.4,Not Applicable
Department for Business Innovation and Skills,Intellectual Property Office,18/08/2015,Accommodation,People Places & Services Directorate,Rushar Ltd,13875,888,Not Applicable
Department for Business Innovation and Skills,Intellectual Property Office,10/08/2015,Accommodation,People Places & Services Directorate,Rushar Ltd,13934,888,Not Applicable
Department for Business Innovation and Skills,Intellectual Property Office,18/08/2015,Accommodation,People Places & Services Directorate,Rushar Ltd,13939,8400,Not Applicable
Department for Business Innovation and Skills,Intellectual Property Office,11/08/2015,Accommodation,People Places & Services Directorate,Quality Floorcare Ltd,15127,2160,Not Applicable
Department for Business Innovation and Skills,Intellectual Property Office,24/08/2015,Accommodation,People Places & Services Directorate,Quality Floorcare Ltd,15165,1110,Not Applicable
Department for Business Innovation and Skills,Intellectual Property Office,27/08/2015,Miscellaneous Expenses General,Copyright and Enforcement Directorate,Stratton Craig Ltd,21900,2250,Not Applicable
Department for Business Innovation and Skills,Intellectual Property Office,18/08/2015,Information Technology,People Places & Services Directorate,HFX Ltd,25460,1824,Not Applicable
Department for Business Innovation and Skills,Intellectual Property Office,04/08/2015,Miscellaneous Expenses General,Finance Directorate,FLUID BRANDING LTD,28567,156,Not Applicable
Department for Business Innovation and Skills,Intellectual Property Office,10/08/2015,Miscellaneous Expenses General,International Policy Directorate,Pick Everard,31096,11044.58,Not Applicable
Department for Business Innovation and Skills,Intellectual Property Office,10/08/2015,Miscellaneous Expenses General,International Policy Directorate,Pick Everard,31154,3364.73,Not Applicable
Department for Business Innovation and Skills,Intellectual Property Office,07/08/2015,Miscellaneous Expenses General,People Places & Services Directorate,On Your Bike,33131,1363.36,Not Applicable
Department for Business Innovation and Skills,Intellectual Property Office,03/08/2015,Office Supplies,Finance Directorate,Total Print Finishing Services Ltd,37548,81.72,Not Applicable
Department for Business Innovation and Skills,Intellectual Property Office,28/08/2015,Office Supplies,Finance Directorate,Total Print Finishing Services Ltd,37610,510,Not Applicable
Department for Business Innovation and Skills,Intellectual Property Office,06/08/2015,Accommodation,People Places & Services Directorate,Cedric John & Son,39671,1152,Not Applicable
Department for Business Innovation and Skills,Intellectual Property Office,06/08/2015,Accommodation,People Places & Services Directorate,Cedric John & Son,39704,1920,Not Applicable
Department for Business Innovation and Skills,Intellectual Property Office,06/08/2015,Accommodation,People Places & Services Directorate,Cedric John & Son,39751,1920,Not Applicable
Department for Business Innovation and Skills,Intellectual Property Office,06/08/2015,Accommodation,People Places & Services Directorate,Cedric John & Son,39898,1920,Not Applicable
Department for Business Innovation and Skills,Intellectual Property Office,14/08/2015,Supporting UK Business,Innovation Directorate,STEPHENS SCOWN LLP,45595,2599.8,Not Applicable
Department for Business Innovation and Skills,Intellectual Property Office,04/08/2015,Staff Costs,People Places & Services Directorate,Personal expenses name witheld,53001,595.7,Not Applicable
Department for Business Innovation and Skills,Intellectual Property Office,05/08/2015,Miscellaneous Expenses General,People Places & Services Directorate,Personal expenses name witheld,53002,205.5,Not Applicable
Department for Business Innovation and Skills,Intellectual Property Office,12/08/2015,Miscellaneous Expenses General,International Policy Directorate,Personal expenses name witheld,53003,100,Not Applicable
Department for Business Innovation and Skills,Intellectual Property Office,07/08/2015,Miscellaneous Expenses General,People Places & Services Directorate,Personal expenses name witheld,53004,20,Not Applicable
Department for Business Innovation and Skills,Intellectual Property Office,07/08/2015,Staff Costs,People Places & Services Directorate,Personal expenses name witheld,53005,23,Not Applicable
Department for Business Innovation and Skills,Intellectual Property Office,12/08/2015,Staff Costs,People Places & Services Directorate,Personal expenses name witheld,53006,148,Not Applicable
Department for Business Innovation and Skills,Intellectual Property Office,11/08/2015,Miscellaneous Expenses General,Innovation Directorate,Personal expenses name witheld,53007,86.4,Not Applicable
Department for Business Innovation and Skills,Intellectual Property Office,11/08/2015,Miscellaneous Expenses General,Innovation Directorate,Personal expenses name witheld,53008,131.4,Not Applicable
Department for Business Innovation and Skills,Intellectual Property Office,11/08/2015,Miscellaneous Expenses General,Innovation Directorate,Personal expenses name witheld,53009,92.25,Not Applicable
Department for Business Innovation and Skills,Intellectual Property Office,11/08/2015,Miscellaneous Expenses General,Innovation Directorate,Personal expenses name witheld,53010,133.2,Not Applicable
Department for Business Innovation and Skills,Intellectual Property Office,11/08/2015,Miscellaneous Expenses General,Innovation Directorate,Personal expenses name witheld,53011,194.6,Not Applicable
Department for Business Innovation and Skills,Intellectual Property Office,11/08/2015,Miscellaneous Expenses General,Innovation Directorate,Personal expenses name witheld,53012,4.5,Not Applicable
Department for Business Innovation and Skills,Intellectual Property Office,11/08/2015,Miscellaneous Expenses General,Innovation Directorate,Personal expenses name witheld,53013,39.4,Not Applicable
Department for Business Innovation and Skills,Intellectual Property Office,11/08/2015,Miscellaneous Expenses General,Innovation Directorate,Personal expenses name witheld,53014,19.9,Not Applicable
Department for Business Innovation and Skills,Intellectual Property Office,11/08/2015,Miscellaneous Expenses General,Innovation Directorate,Personal expenses name witheld,53015,88.2,Not Applicable
Department for Business Innovation and Skills,Intellectual Property Office,13/08/2015,Miscellaneous Expenses General,Innovation Directorate,Personal expenses name witheld,53017,37.96,Not Applicable
Department for Business Innovation and Skills,Intellectual Property Office,19/08/2015,Miscellaneous Expenses General,People Places & Services Directorate,Personal expenses name witheld,53019,35.01,Not Applicable
Department for Business Innovation and Skills,Intellectual Property Office,24/08/2015,Miscellaneous Expenses General,Innovation Directorate,Personal expenses name witheld,53020,19.5,Not Applicable
Department for Business Innovation and Skills,Intellectual Property Office,24/08/2015,Information Technology,International Policy Directorate,Personal expenses name witheld,53021,206.95,Not Applicable
Department for Business Innovation and Skills,Intellectual Property Office,24/08/2015,Miscellaneous Expenses General,International Policy Directorate,Personal expenses name witheld,53022,5.98,Not Applicable
Department for Business Innovation and Skills,Intellectual Property Office,25/08/2015,Miscellaneous Expenses General,People Places & Services Directorate,Personal expenses name witheld,53024,20,Not Applicable
Department for Business Innovation and Skills,Intellectual Property Office,11/08/2015,Accommodation,People Places & Services Directorate,Senator International Ltd,60715,398.96,Not Applicable
Department for Business Innovation and Skills,Intellectual Property Office,07/08/2015,Marketing & Publicity,Innovation Directorate,SHOWLITE LIMITED,64319,130.58,Not Applicable
Department for Business Innovation and Skills,Intellectual Property Office,07/08/2015,Marketing & Publicity,Innovation Directorate,SHOWLITE LIMITED,64320,134.72,Not Applicable
Department for Business Innovation and Skills,Intellectual Property Office,19/08/2015,Staff Costs,People Places & Services Directorate,GovNet Communications,87883,5400,Not Applicable
Department for Business Innovation and Skills,Intellectual Property Office,24/08/2015,Legal & Hearings,Patents Directorate,Marten Walsh Cherer Ltd,88885,2752.86,Not Applicable
Department for Business Innovation and Skills,Intellectual Property Office,03/08/2015,Legal & Hearings,Patents Directorate,Marten Walsh Cherer Ltd,89361,1217.52,Not Applicable
Department for Business Innovation and Skills,Intellectual Property Office,03/08/2015,Legal & Hearings,Trade Marks Directorate,Marten Walsh Cherer Ltd,89456,1731.77,Not Applicable
Department for Business Innovation and Skills,Intellectual Property Office,14/08/2015,Legal & Hearings,Patents Directorate,Marten Walsh Cherer Ltd,89606,1119.12,Not Applicable
Department for Business Innovation and Skills,Intellectual Property Office,24/08/2015,Legal & Hearings,Trade Marks Directorate,Marten Walsh Cherer Ltd,89651,3161.68,Not Applicable
Department for Business Innovation and Skills,Intellectual Property Office,03/08/2015,Miscellaneous Expenses General,Innovation Directorate,Reputation Institute,90216,3000,Not Applicable
Department for Business Innovation and Skills,Intellectual Property Office,05/08/2015,Supporting UK Business,Innovation Directorate,K. W. Peter & Co,101332,3000,Not Applicable
Department for Business Innovation and Skills,Intellectual Property Office,26/08/2015,Supporting UK Business,Innovation Directorate,K. W. Peter & Co,101337,3000,Not Applicable
Department for Business Innovation and Skills,Intellectual Property Office,05/08/2015,Supporting UK Business,Innovation Directorate,LAWRIE INTELLECTUAL PROPERTY,106439,3000,Not Applicable
Department for Business Innovation and Skills,Intellectual Property Office,26/08/2015,Supporting UK Business,Innovation Directorate,LAWRIE INTELLECTUAL PROPERTY,106553,3000,Not Applicable
Department for Business Innovation and Skills,Intellectual Property Office,14/08/2015,Supporting UK Business,Innovation Directorate,LAWRIE INTELLECTUAL PROPERTY,106598,3000,Not Applicable
Department for Business Innovation and Skills,Intellectual Property Office,11/08/2015,Accommodation,People Places & Services Directorate,Thomas Waste Management Ltd,136221,306,Not Applicable
Department for Business Innovation and Skills,Intellectual Property Office,05/08/2015,International Payments,Copyright and Enforcement Directorate,British Copyright Council,150701,12000,Not Applicable
Department for Business Innovation and Skills,Intellectual Property Office,05/08/2015,Supporting UK Business,Innovation Directorate,Alistair Hindle Associates,150747,3000,Not Applicable
Department for Business Innovation and Skills,Intellectual Property Office,26/08/2015,Supporting UK Business,Innovation Directorate,JCP Solicitors,164517,3000,Not Applicable
Department for Business Innovation and Skills,Intellectual Property Office,03/08/2015,Office Supplies,People Places & Services Directorate,Menzies Distribution Ltd t/a Jones Yarre,198235,266.58,Not Applicable
Department for Business Innovation and Skills,Intellectual Property Office,24/08/2015,Marketing & Publicity,Innovation Directorate,Advanstar Communications UK Ltd,200443,1200,Not Applicable
Department for Business Innovation and Skills,Intellectual Property Office,05/08/2015,Information Technology,IT Directorate,Fujitsu Services Ltd,209227,69367.2,Not Applicable
Department for Business Innovation and Skills,Intellectual Property Office,05/08/2015,Information Technology,IT Directorate,Fujitsu Services Ltd,209228,22263.6,Not Applicable
Department for Business Innovation and Skills,Intellectual Property Office,05/08/2015,Office Supplies,People Places & Services Directorate,Menzies Distribution Ltd t/a Jones Yarre,209479,283.23,Not Applicable
Department for Business Innovation and Skills,Intellectual Property Office,26/08/2015,Supporting UK Business,Innovation Directorate,Stevens Hewlett &  Perkins,278255,2600,Not Applicable
Department for Business Innovation and Skills,Intellectual Property Office,11/08/2015,Staff Costs,Patents Directorate,Durham University,283572,660,Not Applicable
Department for Business Innovation and Skills,Intellectual Property Office,24/08/2015,Office Machinery,Finance Directorate,Midshire Business Systems (Northern) Ltd,298084,1134.58,Not Applicable
Department for Business Innovation and Skills,Intellectual Property Office,18/08/2015,Legal & Hearings,Patents Directorate,Government Legal Department,419460,2352.18,Not Applicable
Department for Business Innovation and Skills,Intellectual Property Office,24/08/2015,Staff Costs,People Places & Services Directorate,P&MM Ltd,502828,6434.47,Not Applicable
Department for Business Innovation and Skills,Intellectual Property Office,12/08/2015,Accommodation,People Places & Services Directorate,EDF ENERGY,650982,29084.05,Not Applicable
Department for Business Innovation and Skills,Intellectual Property Office,13/08/2015,Accommodation,People Places & Services Directorate,EDF ENERGY,674674,1435.9,Not Applicable
Department for Business Innovation and Skills,Intellectual Property Office,05/08/2015,Office Supplies,Finance Directorate,Antalis,877884,-125.54,Not Applicable
Department for Business Innovation and Skills,Intellectual Property Office,18/08/2015,Office Supplies,Finance Directorate,Antalis,883474,-251.09,Not Applicable
Department for Business Innovation and Skills,Intellectual Property Office,18/08/2015,Office Supplies,Finance Directorate,Antalis,887371,-12,Not Applicable
Department for Business Innovation and Skills,Intellectual Property Office,18/08/2015,Office Supplies,Finance Directorate,Antalis,887372,-12,Not Applicable
Department for Business Innovation and Skills,Intellectual Property Office,18/08/2015,Office Supplies,Finance Directorate,Antalis,887490,-624,Not Applicable
Department for Business Innovation and Skills,Intellectual Property Office,18/08/2015,Office Supplies,Finance Directorate,Antalis,887491,-624,Not Applicable
Department for Business Innovation and Skills,Intellectual Property Office,18/08/2015,Office Supplies,Finance Directorate,Antalis,887492,-624,Not Applicable
Department for Business Innovation and Skills,Intellectual Property Office,24/08/2015,Staff Costs,People Places & Services Directorate,P&MM Ltd,1022216,8047.51,Not Applicable
Department for Business Innovation and Skills,Intellectual Property Office,12/08/2015,Supporting UK Business,International Policy Directorate,FOREIGN & COMMONWEALTH OFFICE,1077960,-9710.24,Not Applicable
Department for Business Innovation and Skills,Intellectual Property Office,11/08/2015,Supporting UK Business,International Policy Directorate,FOREIGN & COMMONWEALTH OFFICE,1079062,2210.37,Not Applicable
Department for Business Innovation and Skills,Intellectual Property Office,11/08/2015,Supporting UK Business,International Policy Directorate,FOREIGN & COMMONWEALTH OFFICE,1079220,5371.55,Not Applicable
Department for Business Innovation and Skills,Intellectual Property Office,11/08/2015,Supporting UK Business,International Policy Directorate,FOREIGN & COMMONWEALTH OFFICE,1079655,998.69,Not Applicable
Department for Business Innovation and Skills,Intellectual Property Office,11/08/2015,Supporting UK Business,International Policy Directorate,FOREIGN & COMMONWEALTH OFFICE,1079825,26076,Not Applicable
Department for Business Innovation and Skills,Intellectual Property Office,11/08/2015,Supporting UK Business,International Policy Directorate,FOREIGN & COMMONWEALTH OFFICE,1079997,368.12,Not Applicable
Department for Business Innovation and Skills,Intellectual Property Office,11/08/2015,Supporting UK Business,International Policy Directorate,FOREIGN & COMMONWEALTH OFFICE,1080187,1481.47,Not Applicable
Department for Business Innovation and Skills,Intellectual Property Office,12/08/2015,Supporting UK Business,International Policy Directorate,FOREIGN & COMMONWEALTH OFFICE,1080349,63000,Not Applicable
Department for Business Innovation and Skills,Intellectual Property Office,18/08/2015,Supporting UK Business,International Policy Directorate,FOREIGN & COMMONWEALTH OFFICE,1080583,1076.47,Not Applicable
Department for Business Innovation and Skills,Intellectual Property Office,04/08/2015,Agency Staff,International Policy Directorate,Home  Office,1125815,2736.09,Not Applicable
Department for Business Innovation and Skills,Intellectual Property Office,14/08/2015,Miscellaneous Expenses General,Trade Marks Directorate,Home  Office,1125894,1463.18,Not Applicable
Department for Business Innovation and Skills,Intellectual Property Office,19/08/2015,Staff Costs,Patents Directorate,Cardiff University,1128491,304,Not Applicable
Department for Business Innovation and Skills,Intellectual Property Office,03/08/2015,Office Supplies,People Places & Services Directorate,Desso Ltd,1233985,529.92,Not Applicable
Department for Business Innovation and Skills,Intellectual Property Office,07/08/2015,Postage & Delivery Costs,People Places & Services Directorate,CitySprint (UK) Ltd,1406885,3099.53,Not Applicable
Department for Business Innovation and Skills,Intellectual Property Office,24/08/2015,Postage & Delivery Costs,People Places & Services Directorate,CitySprint (UK) Ltd,1426498,48,Not Applicable
Department for Business Innovation and Skills,Intellectual Property Office,06/08/2015,Accommodation,People Places & Services Directorate,Days Rental,1557341,252,Not Applicable
Department for Business Innovation and Skills,Intellectual Property Office,05/08/2015,Staff Costs,People Places & Services Directorate,Whitehall & Industry Group,2150205,3360,Not Applicable
Department for Business Innovation and Skills,Intellectual Property Office,27/08/2015,Miscellaneous Expenses General,Innovation Directorate,Whitehall & Industry Group,2150285,780,Not Applicable
Department for Business Innovation and Skills,Intellectual Property Office,26/08/2015,Miscellaneous Expenses General,Innovation Directorate,Whitehall & Industry Group,2150287,780,Not Applicable
Department for Business Innovation and Skills,Intellectual Property Office,25/08/2015,Miscellaneous Expenses General,People Places & Services Directorate,Performing Right Society LTD,4590730,117.91,Not Applicable
Department for Business Innovation and Skills,Intellectual Property Office,05/08/2015,Office Supplies,Finance Directorate,Antalis,4922185,624,Not Applicable
Department for Business Innovation and Skills,Intellectual Property Office,05/08/2015,Office Supplies,Finance Directorate,Antalis,4939326,196.2,Not Applicable
Department for Business Innovation and Skills,Intellectual Property Office,25/08/2015,Office Supplies,Finance Directorate,Antalis,4946357,2850.2,Not Applicable
Department for Business Innovation and Skills,Intellectual Property Office,05/08/2015,Office Supplies,Finance Directorate,Antalis,4960146,74.04,Not Applicable
Department for Business Innovation and Skills,Intellectual Property Office,18/08/2015,Office Supplies,Finance Directorate,Antalis,5037564,4481.93,Not Applicable
Department for Business Innovation and Skills,Intellectual Property Office,18/08/2015,Staff Costs,People Places & Services Directorate,Antalis,5037564,120,Not Applicable
Department for Business Innovation and Skills,Intellectual Property Office,11/08/2015,Office Supplies,Finance Directorate,Antalis,5038622,624,Not Applicable
Department for Business Innovation and Skills,Intellectual Property Office,13/08/2015,Office Supplies,Finance Directorate,Antalis,5038623,70.92,Not Applicable
Department for Business Innovation and Skills,Intellectual Property Office,13/08/2015,Office Supplies,Finance Directorate,Antalis,5046406,624,Not Applicable
Department for Business Innovation and Skills,Intellectual Property Office,27/08/2015,Office Supplies,Finance Directorate,Antalis,5071748,624,Not Applicable
Department for Business Innovation and Skills,Intellectual Property Office,27/08/2015,Office Supplies,Finance Directorate,Antalis,5071749,624,Not Applicable
Department for Business Innovation and Skills,Intellectual Property Office,18/08/2015,Supporting UK Business,Innovation Directorate,Marks & Clerk LLP,7062180,3000,Not Applicable
Department for Business Innovation and Skills,Intellectual Property Office,05/08/2015,Supporting UK Business,Innovation Directorate,Marks & Clerk LLP,7063355,3000,Not Applicable
Department for Business Innovation and Skills,Intellectual Property Office,25/08/2015,Supporting UK Business,Innovation Directorate,Shepherd and Wedderburn,10203069,3000,Not Applicable
Department for Business Innovation and Skills,Intellectual Property Office,10/08/2015,Supporting UK Business,Innovation Directorate,Shepherd and Wedderburn,10204682,3000,Not Applicable
Department for Business Innovation and Skills,Intellectual Property Office,25/08/2015,Accommodation,People Places & Services Directorate,Corona Energy,10350403,590.95,Not Applicable
Department for Business Innovation and Skills,Intellectual Property Office,24/08/2015,Accommodation,People Places & Services Directorate,Corona Energy,10350406,442.5,Not Applicable
Department for Business Innovation and Skills,Intellectual Property Office,03/08/2015,Telecoms,IT Directorate,VODAFONE LIMITED,13809251,0.32,Not Applicable
Department for Business Innovation and Skills,Intellectual Property Office,24/08/2015,Telecoms,IT Directorate,Talk Talk Business,13893605,653.08,Not Applicable
Department for Business Innovation and Skills,Intellectual Property Office,04/08/2015,Telecoms,IT Directorate,ZEN INTERNET LIMITED,18924532,39.43,Not Applicable
Department for Business Innovation and Skills,Intellectual Property Office,11/08/2015,Telecoms,IT Directorate,ZEN INTERNET LIMITED,18938426,158.5,Not Applicable
Department for Business Innovation and Skills,Intellectual Property Office,11/08/2015,Telecoms,IT Directorate,ZEN INTERNET LIMITED,18953473,161.76,Not Applicable
Department for Business Innovation and Skills,Intellectual Property Office,04/08/2015,Telecoms,IT Directorate,ZEN INTERNET LIMITED,18962608,222.11,Not Applicable
Department for Business Innovation and Skills,Intellectual Property Office,06/08/2015,Telecoms,IT Directorate,ZEN INTERNET LIMITED,18973091,68.36,Not Applicable
Department for Business Innovation and Skills,Intellectual Property Office,11/08/2015,Telecoms,IT Directorate,ZEN INTERNET LIMITED,18982347,191.63,Not Applicable
Department for Business Innovation and Skills,Intellectual Property Office,17/08/2015,Telecoms,IT Directorate,ZEN INTERNET LIMITED,18988958,14.7,Not Applicable
Department for Business Innovation and Skills,Intellectual Property Office,17/08/2015,Telecoms,IT Directorate,ZEN INTERNET LIMITED,19002058,4833.88,Not Applicable
Department for Business Innovation and Skills,Intellectual Property Office,17/08/2015,Telecoms,IT Directorate,ZEN INTERNET LIMITED,19021792,-10.72,Not Applicable
Department for Business Innovation and Skills,Intellectual Property Office,17/08/2015,Telecoms,IT Directorate,ZEN INTERNET LIMITED,19021793,-14.26,Not Applicable
Department for Business Innovation and Skills,Intellectual Property Office,24/08/2015,Telecoms,IT Directorate,ZEN INTERNET LIMITED,19026040,2.11,Not Applicable
Department for Business Innovation and Skills,Intellectual Property Office,24/08/2015,Telecoms,IT Directorate,ZEN INTERNET LIMITED,19044380,178.39,Not Applicable
Department for Business Innovation and Skills,Intellectual Property Office,24/08/2015,Telecoms,IT Directorate,ZEN INTERNET LIMITED,19048993,-4.24,Not Applicable
Department for Business Innovation and Skills,Intellectual Property Office,26/08/2015,Telecoms,IT Directorate,ZEN INTERNET LIMITED,19069710,172.86,Not Applicable
Department for Business Innovation and Skills,Intellectual Property Office,19/08/2015,Staff Costs,Patents Directorate,Imperial College,20138227,660,Not Applicable
Department for Business Innovation and Skills,Intellectual Property Office,11/08/2015,Office Supplies,Patents Directorate,Stationery Office,23547588,7.13,Not Applicable
Department for Business Innovation and Skills,Intellectual Property Office,18/08/2015,Office Supplies,Finance Directorate,Banner  Business Supplies Ltd,29684302,1281.92,Not Applicable
Department for Business Innovation and Skills,Intellectual Property Office,12/08/2015,Office Supplies,Finance Directorate,Banner  Business Supplies Ltd,29935928,20.47,Not Applicable
Department for Business Innovation and Skills,Intellectual Property Office,12/08/2015,Office Supplies,Finance Directorate,Banner  Business Supplies Ltd,29935929,1.01,Not Applicable
Department for Business Innovation and Skills,Intellectual Property Office,12/08/2015,Office Supplies,Finance Directorate,Banner  Business Supplies Ltd,29935930,7.03,Not Applicable
Department for Business Innovation and Skills,Intellectual Property Office,12/08/2015,Office Supplies,Finance Directorate,Banner  Business Supplies Ltd,29935931,31.7,Not Applicable
Department for Business Innovation and Skills,Intellectual Property Office,12/08/2015,Office Supplies,Finance Directorate,Banner  Business Supplies Ltd,30093421,1896.91,Not Applicable
Department for Business Innovation and Skills,Intellectual Property Office,12/08/2015,Office Supplies,Finance Directorate,Banner  Business Supplies Ltd,30135852,66,Not Applicable
Department for Business Innovation and Skills,Intellectual Property Office,07/08/2015,Agency Staff,IT Directorate,Brook Street (UK) Ltd,30224338,187.88,Not Applicable
Department for Business Innovation and Skills,Intellectual Property Office,07/08/2015,Agency Staff,Finance Directorate,Brook Street (UK) Ltd,30224338,1563.81,Not Applicable
Department for Business Innovation and Skills,Intellectual Property Office,07/08/2015,Agency Staff,Trade Marks Directorate,Brook Street (UK) Ltd,30224338,526.04,Not Applicable
Department for Business Innovation and Skills,Intellectual Property Office,07/08/2015,Agency Staff,Finance Directorate,Brook Street (UK) Ltd,30249209,982.43,Not Applicable
Department for Business Innovation and Skills,Intellectual Property Office,07/08/2015,Agency Staff,Finance Directorate,Brook Street (UK) Ltd,30249209,328.58,Not Applicable
Department for Business Innovation and Skills,Intellectual Property Office,07/08/2015,Agency Staff,Trade Marks Directorate,Brook Street (UK) Ltd,30249209,533.06,Not Applicable
Department for Business Innovation and Skills,Intellectual Property Office,07/08/2015,Agency Staff,Finance Directorate,Brook Street (UK) Ltd,30260672,1428.77,Not Applicable
Department for Business Innovation and Skills,Intellectual Property Office,07/08/2015,Agency Staff,Trade Marks Directorate,Brook Street (UK) Ltd,30260672,350.7,Not Applicable
Department for Business Innovation and Skills,Intellectual Property Office,07/08/2015,Agency Staff,People Places & Services Directorate,Brook Street (UK) Ltd,30307326,587.96,Not Applicable
Department for Business Innovation and Skills,Intellectual Property Office,07/08/2015,Agency Staff,Patents Directorate,Brook Street (UK) Ltd,30307326,472.42,Not Applicable
Department for Business Innovation and Skills,Intellectual Property Office,07/08/2015,Agency Staff,Finance Directorate,Brook Street (UK) Ltd,30307326,1069.15,Not Applicable
Department for Business Innovation and Skills,Intellectual Property Office,07/08/2015,Agency Staff,Finance Directorate,Brook Street (UK) Ltd,30307326,1085.58,Not Applicable
Department for Business Innovation and Skills,Intellectual Property Office,07/08/2015,Agency Staff,Trade Marks Directorate,Brook Street (UK) Ltd,30307326,427.85,Not Applicable
Department for Business Innovation and Skills,Intellectual Property Office,17/08/2015,Agency Staff,People Places & Services Directorate,Brook Street (UK) Ltd,30318562,514.15,Not Applicable
Department for Business Innovation and Skills,Intellectual Property Office,17/08/2015,Agency Staff,Patents Directorate,Brook Street (UK) Ltd,30318562,485.18,Not Applicable
Department for Business Innovation and Skills,Intellectual Property Office,17/08/2015,Agency Staff,Finance Directorate,Brook Street (UK) Ltd,30318562,1069.15,Not Applicable
Department for Business Innovation and Skills,Intellectual Property Office,17/08/2015,Agency Staff,Finance Directorate,Brook Street (UK) Ltd,30318562,1085.58,Not Applicable
Department for Business Innovation and Skills,Intellectual Property Office,17/08/2015,Agency Staff,Trade Marks Directorate,Brook Street (UK) Ltd,30318562,382.26,Not Applicable
Department for Business Innovation and Skills,Intellectual Property Office,24/08/2015,Agency Staff,People Places & Services Directorate,Brook Street (UK) Ltd,30329143,534.58,Not Applicable
Department for Business Innovation and Skills,Intellectual Property Office,24/08/2015,Agency Staff,Patents Directorate,Brook Street (UK) Ltd,30329143,462.84,Not Applicable
Department for Business Innovation and Skills,Intellectual Property Office,24/08/2015,Agency Staff,Finance Directorate,Brook Street (UK) Ltd,30329143,1069.15,Not Applicable
Department for Business Innovation and Skills,Intellectual Property Office,24/08/2015,Agency Staff,Finance Directorate,Brook Street (UK) Ltd,30329143,975.06,Not Applicable
Department for Business Innovation and Skills,Intellectual Property Office,24/08/2015,Agency Staff,Trade Marks Directorate,Brook Street (UK) Ltd,30329143,315.62,Not Applicable
Department for Business Innovation and Skills,Intellectual Property Office,07/08/2015,Office Supplies,Finance Directorate,Banner  Business Supplies Ltd,30331289,1266.28,Not Applicable
Department for Business Innovation and Skills,Intellectual Property Office,07/08/2015,Telecoms,Finance Directorate,Banner  Business Supplies Ltd,30331289,633.02,Not Applicable
Department for Business Innovation and Skills,Intellectual Property Office,28/08/2015,Information Technology,Patents Directorate,European Patent Office,40248497,87481.7,Not Applicable
Department for Business Innovation and Skills,Intellectual Property Office,27/08/2015,Telecoms,IT Directorate,Vodafone Corporate Ltd,77235818,5124.4,Not Applicable
Department for Business Innovation and Skills,Intellectual Property Office,03/08/2015,Miscellaneous Expenses General,Trade Marks Directorate,Eversheds Solicitors LLP,91371436,545.54,Not Applicable
Department for Business Innovation and Skills,Intellectual Property Office,03/08/2015,Miscellaneous Expenses General,Trade Marks Directorate,Eversheds Solicitors LLP,91378082,1824.66,Not Applicable
Department for Business Innovation and Skills,Intellectual Property Office,03/08/2015,Miscellaneous Expenses General,Trade Marks Directorate,Eversheds Solicitors LLP,91380386,2640,Not Applicable
Department for Business Innovation and Skills,Intellectual Property Office,03/08/2015,Miscellaneous Expenses General,Trade Marks Directorate,Eversheds Solicitors LLP,91384190,2496.6,Not Applicable
Department for Business Innovation and Skills,Intellectual Property Office,03/08/2015,Miscellaneous Expenses General,Trade Marks Directorate,Eversheds Solicitors LLP,91396764,15475.88,Not Applicable
Department for Business Innovation and Skills,Intellectual Property Office,03/08/2015,Miscellaneous Expenses General,Trade Marks Directorate,Eversheds Solicitors LLP,91402732,1922.64,Not Applicable
Department for Business Innovation and Skills,Intellectual Property Office,03/08/2015,Miscellaneous Expenses General,Trade Marks Directorate,Eversheds Solicitors LLP,91409294,11959.37,Not Applicable
Department for Business Innovation and Skills,Intellectual Property Office,14/08/2015,Postage & Delivery Costs,People Places & Services Directorate,Neopost Ltd,92062718,379.79,Not Applicable
Department for Business Innovation and Skills,Intellectual Property Office,28/08/2015,Office Machinery,People Places & Services Directorate,Xerox Finance,96954208,53.39,Not Applicable
Department for Business Innovation and Skills,Intellectual Property Office,06/08/2015,Office Supplies,Patents Directorate,British Library,139756254,3416.32,Not Applicable
Department for Business Innovation and Skills,Intellectual Property Office,10/08/2015,Supporting UK Business,Copyright and Enforcement Directorate,Companies House,252799307,5,Not Applicable
Department for Business Innovation and Skills,Intellectual Property Office,11/08/2015,Miscellaneous Expenses General,Innovation Directorate,Kantar Media,451035898,3300,Not Applicable
Department for Business Innovation and Skills,Intellectual Property Office,17/08/2015,Accommodation,People Places & Services Directorate,EDF Energy Customer Field Services,600010392,432,Not Applicable
Department for Business Innovation and Skills,Intellectual Property Office,20/08/2015,Travel & Subsistence,International Policy Directorate,HRG UK,634548229,180.21,Not Applicable
Department for Business Innovation and Skills,Intellectual Property Office,19/08/2015,Travel & Subsistence,People Places & Services Directorate,HRG UK,634558332,-110.98,Not Applicable
Department for Business Innovation and Skills,Intellectual Property Office,19/08/2015,Travel & Subsistence,People Places & Services Directorate,HRG UK,634558332,-0.66,Not Applicable
Department for Business Innovation and Skills,Intellectual Property Office,20/08/2015,Travel & Subsistence,Innovation Directorate,HRG UK,634558332,0.24,Not Applicable
Department for Business Innovation and Skills,Intellectual Property Office,20/08/2015,Travel & Subsistence,Innovation Directorate,HRG UK,634558332,39.04,Not Applicable
Department for Business Innovation and Skills,Intellectual Property Office,20/08/2015,Travel & Subsistence,People Places & Services Directorate,HRG UK,634572517,215.6,Not Applicable
Department for Business Innovation and Skills,Intellectual Property Office,20/08/2015,Travel & Subsistence,People Places & Services Directorate,HRG UK,634572517,1.32,Not Applicable
Department for Business Innovation and Skills,Intellectual Property Office,19/08/2015,Travel & Subsistence,People Places & Services Directorate,HRG UK,634572517,-109.6,Not Applicable
Department for Business Innovation and Skills,Intellectual Property Office,19/08/2015,Travel & Subsistence,People Places & Services Directorate,HRG UK,634572517,-0.66,Not Applicable
Department for Business Innovation and Skills,Intellectual Property Office,20/08/2015,Travel & Subsistence,People Places & Services Directorate,HRG UK,634572545,215.6,Not Applicable
Department for Business Innovation and Skills,Intellectual Property Office,20/08/2015,Travel & Subsistence,People Places & Services Directorate,HRG UK,634572545,1.32,Not Applicable
Department for Business Innovation and Skills,Intellectual Property Office,19/08/2015,Travel & Subsistence,People Places & Services Directorate,HRG UK,634572545,-106.01,Not Applicable
Department for Business Innovation and Skills,Intellectual Property Office,19/08/2015,Travel & Subsistence,People Places & Services Directorate,HRG UK,634572545,-0.66,Not Applicable
Department for Business Innovation and Skills,Intellectual Property Office,19/08/2015,Travel & Subsistence,People Places & Services Directorate,HRG UK,634573304,-65.09,Not Applicable
Department for Business Innovation and Skills,Intellectual Property Office,19/08/2015,Travel & Subsistence,People Places & Services Directorate,HRG UK,634573304,-0.42,Not Applicable
Department for Business Innovation and Skills,Intellectual Property Office,20/08/2015,Travel & Subsistence,Innovation Directorate,HRG UK,634573304,9.67,Not Applicable
Department for Business Innovation and Skills,Intellectual Property Office,20/08/2015,Travel & Subsistence,Innovation Directorate,HRG UK,634573304,0.06,Not Applicable
Department for Business Innovation and Skills,Intellectual Property Office,19/08/2015,Travel & Subsistence,International Policy Directorate,HRG UK,634575522,-155.51,Not Applicable
Department for Business Innovation and Skills,Intellectual Property Office,19/08/2015,Travel & Subsistence,International Policy Directorate,HRG UK,634575523,16.35,Not Applicable
Department for Business Innovation and Skills,Intellectual Property Office,20/08/2015,Travel & Subsistence,Copyright and Enforcement Directorate,HRG UK,634576771,109.17,Not Applicable
Department for Business Innovation and Skills,Intellectual Property Office,20/08/2015,Travel & Subsistence,Copyright and Enforcement Directorate,HRG UK,634576772,51.75,Not Applicable
Department for Business Innovation and Skills,Intellectual Property Office,19/08/2015,Travel & Subsistence,Copyright and Enforcement Directorate,HRG UK,634577044,23.25,Not Applicable
Department for Business Innovation and Skills,Intellectual Property Office,19/08/2015,Travel & Subsistence,Copyright and Enforcement Directorate,HRG UK,634582586,143.56,Not Applicable
Department for Business Innovation and Skills,Intellectual Property Office,19/08/2015,Travel & Subsistence,Innovation Directorate,HRG UK,634585496,-225.51,Not Applicable
Department for Business Innovation and Skills,Intellectual Property Office,19/08/2015,Travel & Subsistence,Innovation Directorate,HRG UK,634585496,-1.38,Not Applicable
Department for Business Innovation and Skills,Intellectual Property Office,20/08/2015,Travel & Subsistence,Innovation Directorate,HRG UK,634585496,3.07,Not Applicable
Department for Business Innovation and Skills,Intellectual Property Office,20/08/2015,Travel & Subsistence,Finance Directorate,HRG UK,634585629,225.51,Not Applicable
Department for Business Innovation and Skills,Intellectual Property Office,20/08/2015,Travel & Subsistence,Finance Directorate,HRG UK,634585629,1.38,Not Applicable
Department for Business Innovation and Skills,Intellectual Property Office,19/08/2015,Travel & Subsistence,People Places & Services Directorate,HRG UK,634585629,-9.67,Not Applicable
Department for Business Innovation and Skills,Intellectual Property Office,19/08/2015,Travel & Subsistence,People Places & Services Directorate,HRG UK,634585629,-0.06,Not Applicable
Department for Business Innovation and Skills,Intellectual Property Office,19/08/2015,Travel & Subsistence,Innovation Directorate,HRG UK,634585961,-3.07,Not Applicable
Department for Business Innovation and Skills,Intellectual Property Office,20/08/2015,Travel & Subsistence,Innovation Directorate,HRG UK,634585961,3.07,Not Applicable
Department for Business Innovation and Skills,Intellectual Property Office,19/08/2015,Travel & Subsistence,Innovation Directorate,HRG UK,634585962,-9.85,Not Applicable
Department for Business Innovation and Skills,Intellectual Property Office,20/08/2015,Travel & Subsistence,Innovation Directorate,HRG UK,634585962,4.93,Not Applicable
Department for Business Innovation and Skills,Intellectual Property Office,20/08/2015,Travel & Subsistence,People Places & Services Directorate,HRG UK,634586465,4.93,Not Applicable
Department for Business Innovation and Skills,Intellectual Property Office,19/08/2015,Travel & Subsistence,International Policy Directorate,HRG UK,634586465,-111.64,Not Applicable
Department for Business Innovation and Skills,Intellectual Property Office,20/08/2015,Travel & Subsistence,People Places & Services Directorate,HRG UK,634586467,4.93,Not Applicable
Department for Business Innovation and Skills,Intellectual Property Office,19/08/2015,Travel & Subsistence,International Policy Directorate,HRG UK,634586467,-3.07,Not Applicable
Department for Business Innovation and Skills,Intellectual Property Office,19/08/2015,Travel & Subsistence,Innovation Directorate,HRG UK,634587072,-64.3,Not Applicable
Department for Business Innovation and Skills,Intellectual Property Office,20/08/2015,Travel & Subsistence,Innovation Directorate,HRG UK,634587072,3.07,Not Applicable
Department for Business Innovation and Skills,Intellectual Property Office,19/08/2015,Travel & Subsistence,Innovation Directorate,HRG UK,634587171,-84.43,Not Applicable
Department for Business Innovation and Skills,Intellectual Property Office,20/08/2015,Travel & Subsistence,Innovation Directorate,HRG UK,634587171,3.07,Not Applicable
Department for Business Innovation and Skills,Intellectual Property Office,19/08/2015,Travel & Subsistence,Innovation Directorate,HRG UK,634587850,-3.1,Not Applicable
Department for Business Innovation and Skills,Intellectual Property Office,19/08/2015,Travel & Subsistence,Innovation Directorate,HRG UK,634587957,-77.85,Not Applicable
Department for Business Innovation and Skills,Intellectual Property Office,20/08/2015,Travel & Subsistence,Innovation Directorate,HRG UK,634587957,6.17,Not Applicable
Department for Business Innovation and Skills,Intellectual Property Office,19/08/2015,Travel & Subsistence,Innovation Directorate,HRG UK,634588020,-6.17,Not Applicable
Department for Business Innovation and Skills,Intellectual Property Office,20/08/2015,Travel & Subsistence,Innovation Directorate,HRG UK,634588020,3.07,Not Applicable
Department for Business Innovation and Skills,Intellectual Property Office,20/08/2015,Travel & Subsistence,People Places & Services Directorate,HRG UK,634588540,109.6,Not Applicable
Department for Business Innovation and Skills,Intellectual Property Office,20/08/2015,Travel & Subsistence,People Places & Services Directorate,HRG UK,634588540,0.66,Not Applicable
Department for Business Innovation and Skills,Intellectual Property Office,19/08/2015,Travel & Subsistence,International Policy Directorate,HRG UK,634588540,-0.36,Not Applicable
Department for Business Innovation and Skills,Intellectual Property Office,19/08/2015,Travel & Subsistence,International Policy Directorate,HRG UK,634588540,-57.47,Not Applicable
Department for Business Innovation and Skills,Intellectual Property Office,20/08/2015,Travel & Subsistence,People Places & Services Directorate,HRG UK,634588543,106.01,Not Applicable
Department for Business Innovation and Skills,Intellectual Property Office,20/08/2015,Travel & Subsistence,People Places & Services Directorate,HRG UK,634588543,0.66,Not Applicable
Department for Business Innovation and Skills,Intellectual Property Office,19/08/2015,Travel & Subsistence,International Policy Directorate,HRG UK,634588543,-0.24,Not Applicable
Department for Business Innovation and Skills,Intellectual Property Office,19/08/2015,Travel & Subsistence,International Policy Directorate,HRG UK,634588543,-39.04,Not Applicable
Department for Business Innovation and Skills,Intellectual Property Office,20/08/2015,Travel & Subsistence,Patents Directorate,HRG UK,634589854,328.16,Not Applicable
Department for Business Innovation and Skills,Intellectual Property Office,20/08/2015,Travel & Subsistence,Patents Directorate,HRG UK,634589854,5.07,Not Applicable
Department for Business Innovation and Skills,Intellectual Property Office,19/08/2015,Travel & Subsistence,International Policy Directorate,HRG UK,634589854,-204.81,Not Applicable
Department for Business Innovation and Skills,Intellectual Property Office,19/08/2015,Travel & Subsistence,International Policy Directorate,HRG UK,634589854,-1.26,Not Applicable
Department for Business Innovation and Skills,Intellectual Property Office,20/08/2015,Travel & Subsistence,Innovation Directorate,HRG UK,634590024,6.17,Not Applicable
Department for Business Innovation and Skills,Intellectual Property Office,19/08/2015,Travel & Subsistence,IT Directorate,HRG UK,634590024,-61.41,Not Applicable
Department for Business Innovation and Skills,Intellectual Property Office,19/08/2015,Supporting UK Business,International Policy Directorate,HRG UK,634590105,-3.07,Not Applicable
Department for Business Innovation and Skills,Intellectual Property Office,20/08/2015,Travel & Subsistence,IT Directorate,HRG UK,634590105,6.17,Not Applicable
Department for Business Innovation and Skills,Intellectual Property Office,20/08/2015,Travel & Subsistence,People Places & Services Directorate,HRG UK,634590263,3.07,Not Applicable
Department for Business Innovation and Skills,Intellectual Property Office,19/08/2015,Travel & Subsistence,International Policy Directorate,HRG UK,634590263,-36.88,Not Applicable
Department for Business Innovation and Skills,Intellectual Property Office,20/08/2015,Travel & Subsistence,IT Directorate,HRG UK,634590477,6.17,Not Applicable
Department for Business Innovation and Skills,Intellectual Property Office,19/08/2015,Travel & Subsistence,IT Directorate,HRG UK,634590477,-3.07,Not Applicable
Department for Business Innovation and Skills,Intellectual Property Office,19/08/2015,Supporting UK Business,International Policy Directorate,HRG UK,634590539,-3.07,Not Applicable
Department for Business Innovation and Skills,Intellectual Property Office,20/08/2015,Travel & Subsistence,IT Directorate,HRG UK,634590539,6.17,Not Applicable
Department for Business Innovation and Skills,Intellectual Property Office,19/08/2015,Travel & Subsistence,Copyright and Enforcement Directorate,HRG UK,634590668,-6.66,Not Applicable
Department for Business Innovation and Skills,Intellectual Property Office,19/08/2015,Travel & Subsistence,Copyright and Enforcement Directorate,HRG UK,634590698,-39.79,Not Applicable
Department for Business Innovation and Skills,Intellectual Property Office,19/08/2015,Travel & Subsistence,Copyright and Enforcement Directorate,HRG UK,634590717,-70.18,Not Applicable
Department for Business Innovation and Skills,Intellectual Property Office,19/08/2015,Travel & Subsistence,Copyright and Enforcement Directorate,HRG UK,634590752,-80.26,Not Applicable
Department for Business Innovation and Skills,Intellectual Property Office,20/08/2015,Travel & Subsistence,People Places & Services Directorate,HRG UK,634591325,0.66,Not Applicable
Department for Business Innovation and Skills,Intellectual Property Office,20/08/2015,Travel & Subsistence,People Places & Services Directorate,HRG UK,634591325,114.56,Not Applicable
Department for Business Innovation and Skills,Intellectual Property Office,19/08/2015,Travel & Subsistence,International Policy Directorate,HRG UK,634591325,-114.56,Not Applicable
Department for Business Innovation and Skills,Intellectual Property Office,19/08/2015,Travel & Subsistence,International Policy Directorate,HRG UK,634591325,-0.66,Not Applicable
Department for Business Innovation and Skills,Intellectual Property Office,20/08/2015,Travel & Subsistence,People Places & Services Directorate,HRG UK,634591327,0.66,Not Applicable
Department for Business Innovation and Skills,Intellectual Property Office,20/08/2015,Travel & Subsistence,People Places & Services Directorate,HRG UK,634591327,110.98,Not Applicable
Department for Business Innovation and Skills,Intellectual Property Office,19/08/2015,Travel & Subsistence,International Policy Directorate,HRG UK,634591327,-54.12,Not Applicable
Department for Business Innovation and Skills,Intellectual Property Office,19/08/2015,Travel & Subsistence,International Policy Directorate,HRG UK,634591327,-0.3,Not Applicable
Department for Business Innovation and Skills,Intellectual Property Office,20/08/2015,Travel & Subsistence,International Policy Directorate,HRG UK,634591454,0,Not Applicable
Department for Business Innovation and Skills,Intellectual Property Office,19/08/2015,Travel & Subsistence,Innovation Directorate,HRG UK,634591552,-89.31,Not Applicable
Department for Business Innovation and Skills,Intellectual Property Office,20/08/2015,Travel & Subsistence,Innovation Directorate,HRG UK,634591552,3.07,Not Applicable
Department for Business Innovation and Skills,Intellectual Property Office,19/08/2015,Travel & Subsistence,Patents Directorate,HRG UK,634591556,-3,Not Applicable
Department for Business Innovation and Skills,Intellectual Property Office,19/08/2015,Travel & Subsistence,Patents Directorate,HRG UK,634591556,-0.06,Not Applicable
Department for Business Innovation and Skills,Intellectual Property Office,20/08/2015,Travel & Subsistence,Trade Marks Directorate,HRG UK,634591556,3.07,Not Applicable
Department for Business Innovation and Skills,Intellectual Property Office,19/08/2015,Travel & Subsistence,Innovation Directorate,HRG UK,634591675,-42.62,Not Applicable
Department for Business Innovation and Skills,Intellectual Property Office,19/08/2015,Travel & Subsistence,Innovation Directorate,HRG UK,634591675,-0.24,Not Applicable
Department for Business Innovation and Skills,Intellectual Property Office,20/08/2015,Travel & Subsistence,Innovation Directorate,HRG UK,634591675,3.07,Not Applicable
Department for Business Innovation and Skills,Intellectual Property Office,20/08/2015,Travel & Subsistence,IT Directorate,HRG UK,634592142,9.85,Not Applicable
Department for Business Innovation and Skills,Intellectual Property Office,19/08/2015,Travel & Subsistence,IT Directorate,HRG UK,634592142,-4.93,Not Applicable
Department for Business Innovation and Skills,Intellectual Property Office,19/08/2015,Travel & Subsistence,Innovation Directorate,HRG UK,634593008,0,Not Applicable
Department for Business Innovation and Skills,Intellectual Property Office,20/08/2015,Travel & Subsistence,Innovation Directorate,HRG UK,634593014,0,Not Applicable
Department for Business Innovation and Skills,Intellectual Property Office,19/08/2015,Travel & Subsistence,Innovation Directorate,HRG UK,634593050,0,Not Applicable
Department for Business Innovation and Skills,Intellectual Property Office,19/08/2015,Travel & Subsistence,Innovation Directorate,HRG UK,634593069,-220.9,Not Applicable
Department for Business Innovation and Skills,Intellectual Property Office,20/08/2015,Travel & Subsistence,Innovation Directorate,HRG UK,634593069,3.07,Not Applicable
Department for Business Innovation and Skills,Intellectual Property Office,20/08/2015,Travel & Subsistence,People Places & Services Directorate,HRG UK,634593108,3.07,Not Applicable
Department for Business Innovation and Skills,Intellectual Property Office,19/08/2015,Travel & Subsistence,International Policy Directorate,HRG UK,634593108,-61.05,Not Applicable
Department for Business Innovation and Skills,Intellectual Property Office,19/08/2015,Travel & Subsistence,International Policy Directorate,HRG UK,634593108,-0.36,Not Applicable
Department for Business Innovation and Skills,Intellectual Property Office,20/08/2015,Travel & Subsistence,People Places & Services Directorate,HRG UK,634593131,3.07,Not Applicable
Department for Business Innovation and Skills,Intellectual Property Office,19/08/2015,Travel & Subsistence,International Policy Directorate,HRG UK,634593131,-107.25,Not Applicable
Department for Business Innovation and Skills,Intellectual Property Office,20/08/2015,Travel & Subsistence,Innovation Directorate,HRG UK,634593762,-3.1,Not Applicable
Department for Business Innovation and Skills,Intellectual Property Office,19/08/2015,Travel & Subsistence,Innovation Directorate,HRG UK,634593768,-67.89,Not Applicable
Department for Business Innovation and Skills,Intellectual Property Office,20/08/2015,Travel & Subsistence,Innovation Directorate,HRG UK,634593768,6.17,Not Applicable
Department for Business Innovation and Skills,Intellectual Property Office,20/08/2015,Travel & Subsistence,Innovation Directorate,HRG UK,634593789,0,Not Applicable
Department for Business Innovation and Skills,Intellectual Property Office,19/08/2015,Travel & Subsistence,Innovation Directorate,HRG UK,634593843,-0.6,Not Applicable
Department for Business Innovation and Skills,Intellectual Property Office,19/08/2015,Travel & Subsistence,Innovation Directorate,HRG UK,634593843,-103.07,Not Applicable
Department for Business Innovation and Skills,Intellectual Property Office,20/08/2015,Travel & Subsistence,Innovation Directorate,HRG UK,634593843,3.07,Not Applicable
Department for Business Innovation and Skills,Intellectual Property Office,19/08/2015,Travel & Subsistence,Innovation Directorate,HRG UK,634594914,-0.06,Not Applicable
Department for Business Innovation and Skills,Intellectual Property Office,19/08/2015,Travel & Subsistence,Innovation Directorate,HRG UK,634594914,-9.67,Not Applicable
Department for Business Innovation and Skills,Intellectual Property Office,20/08/2015,Travel & Subsistence,Innovation Directorate,HRG UK,634594914,0.06,Not Applicable
Department for Business Innovation and Skills,Intellectual Property Office,20/08/2015,Travel & Subsistence,Innovation Directorate,HRG UK,634594914,11.21,Not Applicable
Department for Business Innovation and Skills,Intellectual Property Office,19/08/2015,Travel & Subsistence,Innovation Directorate,HRG UK,634594916,-0.3,Not Applicable
Department for Business Innovation and Skills,Intellectual Property Office,19/08/2015,Travel & Subsistence,Innovation Directorate,HRG UK,634594916,-54.12,Not Applicable
Department for Business Innovation and Skills,Intellectual Property Office,20/08/2015,Travel & Subsistence,Innovation Directorate,HRG UK,634594916,0.06,Not Applicable
Department for Business Innovation and Skills,Intellectual Property Office,20/08/2015,Travel & Subsistence,Innovation Directorate,HRG UK,634594916,7.62,Not Applicable
Department for Business Innovation and Skills,Intellectual Property Office,20/08/2015,Travel & Subsistence,International Policy Directorate,HRG UK,634595179,-7.97,Not Applicable
Department for Business Innovation and Skills,Intellectual Property Office,19/08/2015,Travel & Subsistence,International Policy Directorate,HRG UK,634595181,-20.95,Not Applicable
Department for Business Innovation and Skills,Intellectual Property Office,20/08/2015,Travel & Subsistence,Patents Directorate,HRG UK,634595603,57.06,Not Applicable
Department for Business Innovation and Skills,Intellectual Property Office,20/08/2015,Travel & Subsistence,Patents Directorate,HRG UK,634595603,0.36,Not Applicable
Department for Business Innovation and Skills,Intellectual Property Office,19/08/2015,Travel & Subsistence,International Policy Directorate,HRG UK,634595603,-0.66,Not Applicable
Department for Business Innovation and Skills,Intellectual Property Office,19/08/2015,Travel & Subsistence,International Policy Directorate,HRG UK,634595603,-106.01,Not Applicable
Department for Business Innovation and Skills,Intellectual Property Office,20/08/2015,Travel & Subsistence,Patents Directorate,HRG UK,634595712,45.56,Not Applicable
Department for Business Innovation and Skills,Intellectual Property Office,20/08/2015,Travel & Subsistence,Patents Directorate,HRG UK,634595712,0.3,Not Applicable
Department for Business Innovation and Skills,Intellectual Property Office,19/08/2015,Travel & Subsistence,International Policy Directorate,HRG UK,634595712,-109.6,Not Applicable
Department for Business Innovation and Skills,Intellectual Property Office,19/08/2015,Travel & Subsistence,International Policy Directorate,HRG UK,634595712,-0.66,Not Applicable
Department for Business Innovation and Skills,Intellectual Property Office,19/08/2015,Travel & Subsistence,People Places & Services Directorate,HRG UK,634595926,-208.68,Not Applicable
Department for Business Innovation and Skills,Intellectual Property Office,19/08/2015,Travel & Subsistence,People Places & Services Directorate,HRG UK,634595926,-1.26,Not Applicable
Department for Business Innovation and Skills,Intellectual Property Office,20/08/2015,Travel & Subsistence,Finance Directorate,HRG UK,634595926,215.6,Not Applicable
Department for Business Innovation and Skills,Intellectual Property Office,20/08/2015,Travel & Subsistence,Finance Directorate,HRG UK,634595926,1.32,Not Applicable
Department for Business Innovation and Skills,Intellectual Property Office,20/08/2015,Travel & Subsistence,Innovation Directorate,HRG UK,634596123,226.89,Not Applicable
Department for Business Innovation and Skills,Intellectual Property Office,19/08/2015,Travel & Subsistence,IT Directorate,HRG UK,634596123,-9.85,Not Applicable
Department for Business Innovation and Skills,Intellectual Property Office,20/08/2015,Travel & Subsistence,Innovation Directorate,HRG UK,634597943,9.67,Not Applicable
Department for Business Innovation and Skills,Intellectual Property Office,20/08/2015,Travel & Subsistence,Innovation Directorate,HRG UK,634597943,0.06,Not Applicable
Department for Business Innovation and Skills,Intellectual Property Office,19/08/2015,Travel & Subsistence,IT Directorate,HRG UK,634597943,-3.07,Not Applicable
Department for Business Innovation and Skills,Intellectual Property Office,20/08/2015,Travel & Subsistence,Copyright and Enforcement Directorate,HRG UK,634599762,92.05,Not Applicable
Department for Business Innovation and Skills,Intellectual Property Office,20/08/2015,Travel & Subsistence,People Places & Services Directorate,HRG UK,634600707,-1.14,Not Applicable
Department for Business Innovation and Skills,Intellectual Property Office,20/08/2015,Travel & Subsistence,People Places & Services Directorate,HRG UK,634600707,-194.29,Not Applicable
Department for Business Innovation and Skills,Intellectual Property Office,19/08/2015,Travel & Subsistence,International Policy Directorate,HRG UK,634600707,-215.6,Not Applicable
Department for Business Innovation and Skills,Intellectual Property Office,19/08/2015,Travel & Subsistence,International Policy Directorate,HRG UK,634600707,-1.32,Not Applicable
Department for Business Innovation and Skills,Intellectual Property Office,20/08/2015,Travel & Subsistence,People Places & Services Directorate,HRG UK,634600708,-1.14,Not Applicable
Department for Business Innovation and Skills,Intellectual Property Office,20/08/2015,Travel & Subsistence,People Places & Services Directorate,HRG UK,634600708,-194.29,Not Applicable
Department for Business Innovation and Skills,Intellectual Property Office,19/08/2015,Travel & Subsistence,International Policy Directorate,HRG UK,634600708,-215.6,Not Applicable
Department for Business Innovation and Skills,Intellectual Property Office,19/08/2015,Travel & Subsistence,International Policy Directorate,HRG UK,634600708,-1.32,Not Applicable
Department for Business Innovation and Skills,Intellectual Property Office,20/08/2015,Travel & Subsistence,Patents Directorate,HRG UK,634610353,3.24,Not Applicable
Department for Business Innovation and Skills,Intellectual Property Office,20/08/2015,Travel & Subsistence,Patents Directorate,HRG UK,634610353,543.05,Not Applicable
Department for Business Innovation and Skills,Intellectual Property Office,19/08/2015,Travel & Subsistence,International Policy Directorate,HRG UK,634610353,-109.6,Not Applicable
Department for Business Innovation and Skills,Intellectual Property Office,19/08/2015,Travel & Subsistence,International Policy Directorate,HRG UK,634610353,-0.66,Not Applicable
Department for Business Innovation and Skills,Intellectual Property Office,20/08/2015,Travel & Subsistence,Innovation Directorate,HRG UK,634611860,-1.86,Not Applicable
Department for Business Innovation and Skills,Intellectual Property Office,20/08/2015,Travel & Subsistence,Patents Directorate,HRG UK,634611931,88.77,Not Applicable
Department for Business Innovation and Skills,Intellectual Property Office,20/08/2015,Travel & Subsistence,Patents Directorate,HRG UK,634611931,0.54,Not Applicable
Department for Business Innovation and Skills,Intellectual Property Office,19/08/2015,Travel & Subsistence,International Policy Directorate,HRG UK,634611931,-106.01,Not Applicable
Department for Business Innovation and Skills,Intellectual Property Office,19/08/2015,Travel & Subsistence,International Policy Directorate,HRG UK,634611931,-0.66,Not Applicable
Department for Business Innovation and Skills,Intellectual Property Office,20/08/2015,Travel & Subsistence,Innovation Directorate,HRG UK,634613140,50.03,Not Applicable
Department for Business Innovation and Skills,Intellectual Property Office,19/08/2015,Travel & Subsistence,Copyright and Enforcement Directorate,HRG UK,634613266,-57.06,Not Applicable
Department for Business Innovation and Skills,Intellectual Property Office,19/08/2015,Travel & Subsistence,Copyright and Enforcement Directorate,HRG UK,634613266,-0.36,Not Applicable
Department for Business Innovation and Skills,Intellectual Property Office,20/08/2015,Travel & Subsistence,Copyright and Enforcement Directorate,HRG UK,634613266,111.58,Not Applicable
Department for Business Innovation and Skills,Intellectual Property Office,20/08/2015,Travel & Subsistence,Copyright and Enforcement Directorate,HRG UK,634613266,0.66,Not Applicable
Department for Business Innovation and Skills,Intellectual Property Office,20/08/2015,Travel & Subsistence,Copyright and Enforcement Directorate,HRG UK,634613267,3.99,Not Applicable
Department for Business Innovation and Skills,Intellectual Property Office,20/08/2015,Travel & Subsistence,Innovation Directorate,HRG UK,634613883,68.8,Not Applicable
Department for Business Innovation and Skills,Intellectual Property Office,19/08/2015,Travel & Subsistence,Innovation Directorate,HRG UK,634613927,-0.66,Not Applicable
Department for Business Innovation and Skills,Intellectual Property Office,19/08/2015,Travel & Subsistence,Innovation Directorate,HRG UK,634613927,-114.56,Not Applicable
Department for Business Innovation and Skills,Intellectual Property Office,20/08/2015,Travel & Subsistence,Innovation Directorate,HRG UK,634613927,0.42,Not Applicable
Department for Business Innovation and Skills,Intellectual Property Office,20/08/2015,Travel & Subsistence,Innovation Directorate,HRG UK,634613927,71.45,Not Applicable
Department for Business Innovation and Skills,Intellectual Property Office,20/08/2015,Travel & Subsistence,Innovation Directorate,HRG UK,634614693,0.3,Not Applicable
Department for Business Innovation and Skills,Intellectual Property Office,20/08/2015,Travel & Subsistence,Innovation Directorate,HRG UK,634614693,53.63,Not Applicable
Department for Business Innovation and Skills,Intellectual Property Office,19/08/2015,Travel & Subsistence,IT Directorate,HRG UK,634614693,-1.32,Not Applicable
Department for Business Innovation and Skills,Intellectual Property Office,19/08/2015,Travel & Subsistence,IT Directorate,HRG UK,634614693,-215.6,Not Applicable
Department for Business Innovation and Skills,Intellectual Property Office,20/08/2015,Travel & Subsistence,Innovation Directorate,HRG UK,634614721,54.42,Not Applicable
Department for Business Innovation and Skills,Intellectual Property Office,19/08/2015,Travel & Subsistence,IT Directorate,HRG UK,634614721,-6.17,Not Applicable
Department for Business Innovation and Skills,Intellectual Property Office,20/08/2015,Travel & Subsistence,Patents Directorate,HRG UK,634617660,12.36,Not Applicable
Department for Business Innovation and Skills,Intellectual Property Office,20/08/2015,Travel & Subsistence,Patents Directorate,HRG UK,634617660,2069.67,Not Applicable
Department for Business Innovation and Skills,Intellectual Property Office,19/08/2015,Travel & Subsistence,Trade Marks Directorate,HRG UK,634617660,-1.38,Not Applicable
Department for Business Innovation and Skills,Intellectual Property Office,19/08/2015,Travel & Subsistence,Trade Marks Directorate,HRG UK,634617660,-225.86,Not Applicable
Department for Business Innovation and Skills,Intellectual Property Office,20/08/2015,Travel & Subsistence,Patents Directorate,HRG UK,634619407,641.17,Not Applicable
Department for Business Innovation and Skills,Intellectual Property Office,20/08/2015,Travel & Subsistence,Patents Directorate,HRG UK,634619407,3.84,Not Applicable
Department for Business Innovation and Skills,Intellectual Property Office,19/08/2015,Travel & Subsistence,Trade Marks Directorate,HRG UK,634619407,-0.18,Not Applicable
Department for Business Innovation and Skills,Intellectual Property Office,19/08/2015,Travel & Subsistence,Trade Marks Directorate,HRG UK,634619407,-24.7,Not Applicable
Department for Business Innovation and Skills,Intellectual Property Office,19/08/2015,Travel & Subsistence,Innovation Directorate,HRG UK,634619455,92.22,Not Applicable
Department for Business Innovation and Skills,Intellectual Property Office,19/08/2015,Travel & Subsistence,Patents Directorate,HRG UK,634619484,-57.06,Not Applicable
Department for Business Innovation and Skills,Intellectual Property Office,19/08/2015,Travel & Subsistence,Patents Directorate,HRG UK,634619484,-0.36,Not Applicable
Department for Business Innovation and Skills,Intellectual Property Office,20/08/2015,Travel & Subsistence,Trade Marks Directorate,HRG UK,634619484,99.79,Not Applicable
Department for Business Innovation and Skills,Intellectual Property Office,20/08/2015,Travel & Subsistence,Trade Marks Directorate,HRG UK,634619484,0.6,Not Applicable
Department for Business Innovation and Skills,Intellectual Property Office,20/08/2015,Travel & Subsistence,Trade Marks Directorate,HRG UK,634620590,45.56,Not Applicable
Department for Business Innovation and Skills,Intellectual Property Office,20/08/2015,Travel & Subsistence,Trade Marks Directorate,HRG UK,634620590,0.3,Not Applicable
Department for Business Innovation and Skills,Intellectual Property Office,19/08/2015,Travel & Subsistence,International Policy Directorate,HRG UK,634620590,-3.07,Not Applicable
Department for Business Innovation and Skills,Intellectual Property Office,20/08/2015,Travel & Subsistence,Trade Marks Directorate,HRG UK,634620591,106.67,Not Applicable
Department for Business Innovation and Skills,Intellectual Property Office,19/08/2015,Travel & Subsistence,International Policy Directorate,HRG UK,634620591,-3.07,Not Applicable
Department for Business Innovation and Skills,Intellectual Property Office,19/08/2015,Travel & Subsistence,Innovation Directorate,HRG UK,634621040,-3.07,Not Applicable
Department for Business Innovation and Skills,Intellectual Property Office,20/08/2015,Travel & Subsistence,Innovation Directorate,HRG UK,634621040,42.62,Not Applicable
Department for Business Innovation and Skills,Intellectual Property Office,20/08/2015,Travel & Subsistence,Innovation Directorate,HRG UK,634621040,0.24,Not Applicable
Department for Business Innovation and Skills,Intellectual Property Office,19/08/2015,Travel & Subsistence,Innovation Directorate,HRG UK,634621049,-39.04,Not Applicable
Department for Business Innovation and Skills,Intellectual Property Office,19/08/2015,Travel & Subsistence,Innovation Directorate,HRG UK,634621049,-0.24,Not Applicable
Department for Business Innovation and Skills,Intellectual Property Office,20/08/2015,Travel & Subsistence,Innovation Directorate,HRG UK,634621049,50.53,Not Applicable
Department for Business Innovation and Skills,Intellectual Property Office,20/08/2015,Travel & Subsistence,Innovation Directorate,HRG UK,634621049,0.3,Not Applicable
Department for Business Innovation and Skills,Intellectual Property Office,19/08/2015,Travel & Subsistence,Innovation Directorate,HRG UK,634621170,-54.12,Not Applicable
Department for Business Innovation and Skills,Intellectual Property Office,19/08/2015,Travel & Subsistence,Innovation Directorate,HRG UK,634621170,-0.3,Not Applicable
Department for Business Innovation and Skills,Intellectual Property Office,20/08/2015,Travel & Subsistence,Innovation Directorate,HRG UK,634621170,42.62,Not Applicable
Department for Business Innovation and Skills,Intellectual Property Office,20/08/2015,Travel & Subsistence,Innovation Directorate,HRG UK,634621170,0.24,Not Applicable
Department for Business Innovation and Skills,Intellectual Property Office,19/08/2015,Travel & Subsistence,Innovation Directorate,HRG UK,634621171,-53.63,Not Applicable
Department for Business Innovation and Skills,Intellectual Property Office,19/08/2015,Travel & Subsistence,Innovation Directorate,HRG UK,634621171,-0.3,Not Applicable
Department for Business Innovation and Skills,Intellectual Property Office,20/08/2015,Travel & Subsistence,Innovation Directorate,HRG UK,634621171,0.3,Not Applicable
Department for Business Innovation and Skills,Intellectual Property Office,20/08/2015,Travel & Subsistence,Innovation Directorate,HRG UK,634621171,50.53,Not Applicable
Department for Business Innovation and Skills,Intellectual Property Office,20/08/2015,Travel & Subsistence,Trade Marks Directorate,HRG UK,634624429,0.36,Not Applicable
Department for Business Innovation and Skills,Intellectual Property Office,20/08/2015,Travel & Subsistence,Trade Marks Directorate,HRG UK,634624429,57.06,Not Applicable
Department for Business Innovation and Skills,Intellectual Property Office,19/08/2015,Travel & Subsistence,International Policy Directorate,HRG UK,634624429,-5.11,Not Applicable
Department for Business Innovation and Skills,Intellectual Property Office,19/08/2015,Travel & Subsistence,International Policy Directorate,HRG UK,634624429,-3.78,Not Applicable
Department for Business Innovation and Skills,Intellectual Property Office,19/08/2015,Travel & Subsistence,People Places & Services Directorate,HRG UK,634625324,-14.26,Not Applicable
Department for Business Innovation and Skills,Intellectual Property Office,19/08/2015,Travel & Subsistence,People Places & Services Directorate,HRG UK,634625324,-1.92,Not Applicable
Department for Business Innovation and Skills,Intellectual Property Office,20/08/2015,Travel & Subsistence,International Policy Directorate,HRG UK,634625324,1.32,Not Applicable
Department for Business Innovation and Skills,Intellectual Property Office,20/08/2015,Travel & Subsistence,International Policy Directorate,HRG UK,634625324,215.6,Not Applicable
Department for Business Innovation and Skills,Intellectual Property Office,19/08/2015,Miscellaneous Expenses General,Innovation Directorate,HRG UK,634625325,-40.67,Not Applicable
Department for Business Innovation and Skills,Intellectual Property Office,20/08/2015,Travel & Subsistence,IT Directorate,HRG UK,634625325,210.94,Not Applicable
Department for Business Innovation and Skills,Intellectual Property Office,19/08/2015,Travel & Subsistence,Copyright and Enforcement Directorate,HRG UK,634625366,-8.48,Not Applicable
Department for Business Innovation and Skills,Intellectual Property Office,19/08/2015,Travel & Subsistence,Patents Directorate,HRG UK,634627021,-4.8,Not Applicable
Department for Business Innovation and Skills,Intellectual Property Office,19/08/2015,Travel & Subsistence,Patents Directorate,HRG UK,634627021,-0.11,Not Applicable
Department for Business Innovation and Skills,Intellectual Property Office,20/08/2015,Travel & Subsistence,Trade Marks Directorate,HRG UK,634627021,0.48,Not Applicable
Department for Business Innovation and Skills,Intellectual Property Office,20/08/2015,Travel & Subsistence,Trade Marks Directorate,HRG UK,634627021,77.87,Not Applicable
Department for Business Innovation and Skills,Intellectual Property Office,20/08/2015,Travel & Subsistence,Innovation Directorate,HRG UK,634627437,-6.66,Not Applicable
Department for Business Innovation and Skills,Intellectual Property Office,20/08/2015,Travel & Subsistence,Trade Marks Directorate,HRG UK,634627469,3.07,Not Applicable
Department for Business Innovation and Skills,Intellectual Property Office,19/08/2015,Travel & Subsistence,International Policy Directorate,HRG UK,634627469,-0.06,Not Applicable
Department for Business Innovation and Skills,Intellectual Property Office,19/08/2015,Travel & Subsistence,International Policy Directorate,HRG UK,634627469,-5.07,Not Applicable
Department for Business Innovation and Skills,Intellectual Property Office,19/08/2015,Travel & Subsistence,Copyright and Enforcement Directorate,HRG UK,634627653,-0.66,Not Applicable
Department for Business Innovation and Skills,Intellectual Property Office,19/08/2015,Travel & Subsistence,Copyright and Enforcement Directorate,HRG UK,634627653,-106.01,Not Applicable
Department for Business Innovation and Skills,Intellectual Property Office,20/08/2015,Travel & Subsistence,Copyright and Enforcement Directorate,HRG UK,634627653,0.18,Not Applicable
Department for Business Innovation and Skills,Intellectual Property Office,20/08/2015,Travel & Subsistence,Copyright and Enforcement Directorate,HRG UK,634627653,26.04,Not Applicable
Department for Business Innovation and Skills,Intellectual Property Office,20/08/2015,Travel & Subsistence,Innovation Directorate,HRG UK,634628210,3.07,Not Applicable
Department for Business Innovation and Skills,Intellectual Property Office,19/08/2015,Travel & Subsistence,People Places & Services Directorate,HRG UK,634628210,-106.67,Not Applicable
Department for Business Innovation and Skills,Intellectual Property Office,19/08/2015,Travel & Subsistence,Copyright and Enforcement Directorate,HRG UK,634628218,-107.68,Not Applicable
Department for Business Innovation and Skills,Intellectual Property Office,19/08/2015,Travel & Subsistence,People Places & Services Directorate,HRG UK,634628318,-2934.06,Not Applicable
Department for Business Innovation and Skills,Intellectual Property Office,20/08/2015,Travel & Subsistence,International Policy Directorate,HRG UK,634628318,216.92,Not Applicable
Department for Business Innovation and Skills,Intellectual Property Office,19/08/2015,Travel & Subsistence,Innovation Directorate,HRG UK,634628367,0,Not Applicable
Department for Business Innovation and Skills,Intellectual Property Office,19/08/2015,Travel & Subsistence,Innovation Directorate,HRG UK,634628369,1.86,Not Applicable
Department for Business Innovation and Skills,Intellectual Property Office,19/08/2015,Travel & Subsistence,Innovation Directorate,HRG UK,634628411,0,Not Applicable
Department for Business Innovation and Skills,Intellectual Property Office,20/08/2015,Travel & Subsistence,Innovation Directorate,HRG UK,634628436,0,Not Applicable
Department for Business Innovation and Skills,Intellectual Property Office,19/08/2015,Travel & Subsistence,Innovation Directorate,HRG UK,634628701,0,Not Applicable
Department for Business Innovation and Skills,Intellectual Property Office,20/08/2015,Travel & Subsistence,Trade Marks Directorate,HRG UK,634628930,6.17,Not Applicable
Department for Business Innovation and Skills,Intellectual Property Office,19/08/2015,Travel & Subsistence,International Policy Directorate,HRG UK,634628930,-632.87,Not Applicable
Department for Business Innovation and Skills,Intellectual Property Office,20/08/2015,Travel & Subsistence,People Places & Services Directorate,HRG UK,634629512,215.6,Not Applicable
Department for Business Innovation and Skills,Intellectual Property Office,20/08/2015,Travel & Subsistence,People Places & Services Directorate,HRG UK,634629512,1.32,Not Applicable
Department for Business Innovation and Skills,Intellectual Property Office,19/08/2015,Travel & Subsistence,International Policy Directorate,HRG UK,634629512,-3.07,Not Applicable
Department for Business Innovation and Skills,Intellectual Property Office,20/08/2015,Travel & Subsistence,People Places & Services Directorate,HRG UK,634629637,1.32,Not Applicable
Department for Business Innovation and Skills,Intellectual Property Office,20/08/2015,Travel & Subsistence,People Places & Services Directorate,HRG UK,634629637,215.6,Not Applicable
Department for Business Innovation and Skills,Intellectual Property Office,19/08/2015,Travel & Subsistence,International Policy Directorate,HRG UK,634629637,-4.93,Not Applicable
Department for Business Innovation and Skills,Intellectual Property Office,20/08/2015,Travel & Subsistence,People Places & Services Directorate,HRG UK,634629752,1.32,Not Applicable
Department for Business Innovation and Skills,Intellectual Property Office,20/08/2015,Travel & Subsistence,People Places & Services Directorate,HRG UK,634629752,215.6,Not Applicable
Department for Business Innovation and Skills,Intellectual Property Office,19/08/2015,Travel & Subsistence,International Policy Directorate,HRG UK,634629752,-0.66,Not Applicable
Department for Business Innovation and Skills,Intellectual Property Office,19/08/2015,Travel & Subsistence,International Policy Directorate,HRG UK,634629752,-109.6,Not Applicable
Department for Business Innovation and Skills,Intellectual Property Office,20/08/2015,Travel & Subsistence,IT Directorate,HRG UK,634629924,1.32,Not Applicable
Department for Business Innovation and Skills,Intellectual Property Office,20/08/2015,Travel & Subsistence,IT Directorate,HRG UK,634629924,215.6,Not Applicable
Department for Business Innovation and Skills,Intellectual Property Office,19/08/2015,Travel & Subsistence,Trade Marks Directorate,HRG UK,634629924,-0.84,Not Applicable
Department for Business Innovation and Skills,Intellectual Property Office,19/08/2015,Travel & Subsistence,Trade Marks Directorate,HRG UK,634629924,-14.25,Not Applicable
Department for Business Innovation and Skills,Intellectual Property Office,19/08/2015,Travel & Subsistence,Innovation Directorate,HRG UK,634630498,42.79,Not Applicable
Department for Business Innovation and Skills,Intellectual Property Office,20/08/2015,Travel & Subsistence,Innovation Directorate,HRG UK,634630499,103.6,Not Applicable
Department for Business Innovation and Skills,Intellectual Property Office,19/08/2015,Travel & Subsistence,Copyright and Enforcement Directorate,HRG UK,634630818,21.43,Not Applicable
Department for Business Innovation and Skills,Intellectual Property Office,20/08/2015,Travel & Subsistence,Copyright and Enforcement Directorate,HRG UK,634631131,109.35,Not Applicable
Department for Business Innovation and Skills,Intellectual Property Office,19/08/2015,Miscellaneous Expenses General,Innovation Directorate,HRG UK,634631933,-9.73,Not Applicable
Department for Business Innovation and Skills,Intellectual Property Office,20/08/2015,Travel & Subsistence,IT Directorate,HRG UK,634631933,33.39,Not Applicable
Department for Business Innovation and Skills,Intellectual Property Office,20/08/2015,Travel & Subsistence,People Places & Services Directorate,HRG UK,634632309,0.48,Not Applicable
Department for Business Innovation and Skills,Intellectual Property Office,20/08/2015,Travel & Subsistence,People Places & Services Directorate,HRG UK,634632309,77.97,Not Applicable
Department for Business Innovation and Skills,Intellectual Property Office,19/08/2015,Travel & Subsistence,People Places & Services Directorate,HRG UK,634632309,-109.6,Not Applicable
Department for Business Innovation and Skills,Intellectual Property Office,19/08/2015,Travel & Subsistence,People Places & Services Directorate,HRG UK,634632309,-0.66,Not Applicable
Department for Business Innovation and Skills,Intellectual Property Office,19/08/2015,Travel & Subsistence,Copyright and Enforcement Directorate,HRG UK,634632505,10.46,Not Applicable
Department for Business Innovation and Skills,Intellectual Property Office,19/08/2015,Travel & Subsistence,Copyright and Enforcement Directorate,HRG UK,634632807,208.37,Not Applicable
Department for Business Innovation and Skills,Intellectual Property Office,20/08/2015,Travel & Subsistence,Copyright and Enforcement Directorate,HRG UK,634632865,1.99,Not Applicable
Department for Business Innovation and Skills,Intellectual Property Office,19/08/2015,Travel & Subsistence,People Places & Services Directorate,HRG UK,634633755,-312.7,Not Applicable
Department for Business Innovation and Skills,Intellectual Property Office,20/08/2015,Travel & Subsistence,International Policy Directorate,HRG UK,634633755,227.98,Not Applicable
Department for Business Innovation and Skills,Intellectual Property Office,20/08/2015,Travel & Subsistence,International Policy Directorate,HRG UK,634633755,1.38,Not Applicable
Department for Business Innovation and Skills,Intellectual Property Office,19/08/2015,Travel & Subsistence,Copyright and Enforcement Directorate,HRG UK,634634071,-83.85,Not Applicable
Department for Business Innovation and Skills,Intellectual Property Office,19/08/2015,Travel & Subsistence,Copyright and Enforcement Directorate,HRG UK,634634071,-0.48,Not Applicable
Department for Business Innovation and Skills,Intellectual Property Office,20/08/2015,Travel & Subsistence,Innovation Directorate,HRG UK,634634071,0.24,Not Applicable
Department for Business Innovation and Skills,Intellectual Property Office,20/08/2015,Travel & Subsistence,Innovation Directorate,HRG UK,634634071,43.22,Not Applicable
Department for Business Innovation and Skills,Intellectual Property Office,19/08/2015,Travel & Subsistence,Copyright and Enforcement Directorate,HRG UK,634634072,-571.01,Not Applicable
Department for Business Innovation and Skills,Intellectual Property Office,20/08/2015,Travel & Subsistence,Innovation Directorate,HRG UK,634634072,0.66,Not Applicable
Department for Business Innovation and Skills,Intellectual Property Office,20/08/2015,Travel & Subsistence,Innovation Directorate,HRG UK,634634072,108,Not Applicable
Department for Business Innovation and Skills,Intellectual Property Office,19/08/2015,Travel & Subsistence,International Policy Directorate,HRG UK,634635178,159.09,Not Applicable
Department for Business Innovation and Skills,Intellectual Property Office,20/08/2015,Travel & Subsistence,Patents Directorate,HRG UK,634638178,433.97,Not Applicable
Department for Business Innovation and Skills,Intellectual Property Office,19/08/2015,Travel & Subsistence,International Policy Directorate,HRG UK,634638178,-3.07,Not Applicable
Department for Business Innovation and Skills,Intellectual Property Office,20/08/2015,Travel & Subsistence,Trade Marks Directorate,HRG UK,634642081,4.93,Not Applicable
Department for Business Innovation and Skills,Intellectual Property Office,19/08/2015,Travel & Subsistence,International Policy Directorate,HRG UK,634642081,-505.51,Not Applicable
Department for Business Innovation and Skills,Intellectual Property Office,19/08/2015,Travel & Subsistence,Innovation Directorate,HRG UK,634642406,0,Not Applicable
Department for Business Innovation and Skills,Intellectual Property Office,19/08/2015,Travel & Subsistence,Patents Directorate,HRG UK,634642800,-100,Not Applicable
Department for Business Innovation and Skills,Intellectual Property Office,20/08/2015,Travel & Subsistence,Trade Marks Directorate,HRG UK,634642800,3.07,Not Applicable
Department for Business Innovation and Skills,Intellectual Property Office,19/08/2015,Travel & Subsistence,Innovation Directorate,HRG UK,634642864,-3.06,Not Applicable
Department for Business Innovation and Skills,Intellectual Property Office,20/08/2015,Travel & Subsistence,International Policy Directorate,HRG UK,634642864,3.07,Not Applicable
Department for Business Innovation and Skills,Intellectual Property Office,20/08/2015,Travel & Subsistence,People Places & Services Directorate,HRG UK,634642989,3.07,Not Applicable
Department for Business Innovation and Skills,Intellectual Property Office,19/08/2015,Travel & Subsistence,International Policy Directorate,HRG UK,634642989,-89.31,Not Applicable
Department for Business Innovation and Skills,Intellectual Property Office,20/08/2015,Travel & Subsistence,People Places & Services Directorate,HRG UK,634642996,3.07,Not Applicable
Department for Business Innovation and Skills,Intellectual Property Office,19/08/2015,Travel & Subsistence,International Policy Directorate,HRG UK,634642996,-53.53,Not Applicable
Department for Business Innovation and Skills,Intellectual Property Office,19/08/2015,Travel & Subsistence,International Policy Directorate,HRG UK,634642996,-0.3,Not Applicable
Department for Business Innovation and Skills,Intellectual Property Office,20/08/2015,Travel & Subsistence,IT Directorate,HRG UK,634643027,3.07,Not Applicable
Department for Business Innovation and Skills,Intellectual Property Office,19/08/2015,Travel & Subsistence,Trade Marks Directorate,HRG UK,634643027,-3.07,Not Applicable
Department for Business Innovation and Skills,Intellectual Property Office,19/08/2015,Travel & Subsistence,International Policy Directorate,HRG UK,634643519,0,Not Applicable
Department for Business Innovation and Skills,Intellectual Property Office,19/08/2015,Travel & Subsistence,Copyright and Enforcement Directorate,HRG UK,634643622,-101.78,Not Applicable
Department for Business Innovation and Skills,Intellectual Property Office,20/08/2015,Travel & Subsistence,Innovation Directorate,HRG UK,634643622,3.07,Not Applicable
Department for Business Innovation and Skills,Intellectual Property Office,20/08/2015,Travel & Subsistence,Patents Directorate,HRG UK,634643930,3.07,Not Applicable
Department for Business Innovation and Skills,Intellectual Property Office,19/08/2015,Travel & Subsistence,International Policy Directorate,HRG UK,634643930,-215.6,Not Applicable
Department for Business Innovation and Skills,Intellectual Property Office,19/08/2015,Travel & Subsistence,International Policy Directorate,HRG UK,634643930,-1.32,Not Applicable
Department for Business Innovation and Skills,Intellectual Property Office,19/08/2015,Travel & Subsistence,People Places & Services Directorate,HRG UK,634644235,-0.06,Not Applicable
Department for Business Innovation and Skills,Intellectual Property Office,19/08/2015,Travel & Subsistence,People Places & Services Directorate,HRG UK,634644235,-3,Not Applicable
Department for Business Innovation and Skills,Intellectual Property Office,20/08/2015,Travel & Subsistence,International Policy Directorate,HRG UK,634644235,215.6,Not Applicable
Department for Business Innovation and Skills,Intellectual Property Office,20/08/2015,Travel & Subsistence,International Policy Directorate,HRG UK,634644235,1.32,Not Applicable
Department for Business Innovation and Skills,Intellectual Property Office,19/08/2015,Travel & Subsistence,Innovation Directorate,HRG UK,634644265,-5.74,Not Applicable
Department for Business Innovation and Skills,Intellectual Property Office,19/08/2015,Travel & Subsistence,Innovation Directorate,HRG UK,634644265,-0.9,Not Applicable
Department for Business Innovation and Skills,Intellectual Property Office,20/08/2015,Travel & Subsistence,International Policy Directorate,HRG UK,634644265,215.6,Not Applicable
Department for Business Innovation and Skills,Intellectual Property Office,20/08/2015,Travel & Subsistence,International Policy Directorate,HRG UK,634644265,1.32,Not Applicable
Department for Business Innovation and Skills,Intellectual Property Office,20/08/2015,Travel & Subsistence,IT Directorate,HRG UK,634644301,215.6,Not Applicable
Department for Business Innovation and Skills,Intellectual Property Office,20/08/2015,Travel & Subsistence,IT Directorate,HRG UK,634644301,1.32,Not Applicable
Department for Business Innovation and Skills,Intellectual Property Office,19/08/2015,Travel & Subsistence,IT Directorate,HRG UK,634644301,-0.24,Not Applicable
Department for Business Innovation and Skills,Intellectual Property Office,19/08/2015,Travel & Subsistence,IT Directorate,HRG UK,634644301,-40.22,Not Applicable
Department for Business Innovation and Skills,Intellectual Property Office,20/08/2015,Travel & Subsistence,Innovation Directorate,HRG UK,634644446,43.35,Not Applicable
Department for Business Innovation and Skills,Intellectual Property Office,19/08/2015,Travel & Subsistence,People Places & Services Directorate,HRG UK,634644615,-5.09,Not Applicable
Department for Business Innovation and Skills,Intellectual Property Office,19/08/2015,Travel & Subsistence,People Places & Services Directorate,HRG UK,634644615,-17.64,Not Applicable
Department for Business Innovation and Skills,Intellectual Property Office,19/08/2015,Travel & Subsistence,Innovation Directorate,HRG UK,634644615,-147.11,Not Applicable
Department for Business Innovation and Skills,Intellectual Property Office,20/08/2015,Travel & Subsistence,International Policy Directorate,HRG UK,634644615,163.29,Not Applicable
Department for Business Innovation and Skills,Intellectual Property Office,20/08/2015,Travel & Subsistence,International Policy Directorate,HRG UK,634644615,5.09,Not Applicable
Department for Business Innovation and Skills,Intellectual Property Office,20/08/2015,Travel & Subsistence,Innovation Directorate,HRG UK,634644632,1.5,Not Applicable
Department for Business Innovation and Skills,Intellectual Property Office,20/08/2015,Travel & Subsistence,Innovation Directorate,HRG UK,634644632,253.45,Not Applicable
Department for Business Innovation and Skills,Intellectual Property Office,19/08/2015,Travel & Subsistence,People Places & Services Directorate,HRG UK,634644632,-57.06,Not Applicable
Department for Business Innovation and Skills,Intellectual Property Office,19/08/2015,Travel & Subsistence,People Places & Services Directorate,HRG UK,634644632,-0.36,Not Applicable
Department for Business Innovation and Skills,Intellectual Property Office,19/08/2015,Travel & Subsistence,Innovation Directorate,HRG UK,634644805,-4.57,Not Applicable
Department for Business Innovation and Skills,Intellectual Property Office,19/08/2015,Travel & Subsistence,Innovation Directorate,HRG UK,634644805,-253.45,Not Applicable
Department for Business Innovation and Skills,Intellectual Property Office,20/08/2015,Travel & Subsistence,International Policy Directorate,HRG UK,634644805,173.35,Not Applicable
Department for Business Innovation and Skills,Intellectual Property Office,20/08/2015,Travel & Subsistence,International Policy Directorate,HRG UK,634644805,5.09,Not Applicable
Department for Business Innovation and Skills,Intellectual Property Office,19/08/2015,Travel & Subsistence,Copyright and Enforcement Directorate,HRG UK,634645512,416.1,Not Applicable
Department for Business Innovation and Skills,Intellectual Property Office,20/08/2015,Travel & Subsistence,Patents Directorate,HRG UK,634645972,115.53,Not Applicable
Department for Business Innovation and Skills,Intellectual Property Office,19/08/2015,Travel & Subsistence,Trade Marks Directorate,HRG UK,634645972,-3.07,Not Applicable
Department for Business Innovation and Skills,Intellectual Property Office,20/08/2015,Travel & Subsistence,Patents Directorate,HRG UK,634645974,86.38,Not Applicable
Department for Business Innovation and Skills,Intellectual Property Office,20/08/2015,Travel & Subsistence,Patents Directorate,HRG UK,634645974,0.54,Not Applicable
Department for Business Innovation and Skills,Intellectual Property Office,19/08/2015,Travel & Subsistence,Trade Marks Directorate,HRG UK,634645974,-0.36,Not Applicable
Department for Business Innovation and Skills,Intellectual Property Office,19/08/2015,Travel & Subsistence,Trade Marks Directorate,HRG UK,634645974,-57.06,Not Applicable
Department for Business Innovation and Skills,Intellectual Property Office,20/08/2015,Travel & Subsistence,Patents Directorate,HRG UK,634645975,73.44,Not Applicable
Department for Business Innovation and Skills,Intellectual Property Office,20/08/2015,Travel & Subsistence,Patents Directorate,HRG UK,634645975,0.42,Not Applicable
Department for Business Innovation and Skills,Intellectual Property Office,19/08/2015,Travel & Subsistence,Trade Marks Directorate,HRG UK,634645975,-0.3,Not Applicable
Department for Business Innovation and Skills,Intellectual Property Office,19/08/2015,Travel & Subsistence,Trade Marks Directorate,HRG UK,634645975,-45.56,Not Applicable
Department for Business Innovation and Skills,Intellectual Property Office,19/08/2015,Travel & Subsistence,Innovation Directorate,HRG UK,634647898,40.93,Not Applicable
Department for Business Innovation and Skills,Intellectual Property Office,19/08/2015,Travel & Subsistence,Innovation Directorate,HRG UK,634647903,11.38,Not Applicable
Department for Business Innovation and Skills,Intellectual Property Office,19/08/2015,Travel & Subsistence,International Policy Directorate,HRG UK,634648381,101.7,Not Applicable
Department for Business Innovation and Skills,Intellectual Property Office,19/08/2015,Miscellaneous Expenses General,Innovation Directorate,HRG UK,634656127,-143.14,Not Applicable
Department for Business Innovation and Skills,Intellectual Property Office,20/08/2015,Travel & Subsistence,IT Directorate,HRG UK,634656127,9.73,Not Applicable
Department for Business Innovation and Skills,Intellectual Property Office,19/08/2015,Miscellaneous Expenses General,Innovation Directorate,HRG UK,634657270,-109.76,Not Applicable
Department for Business Innovation and Skills,Intellectual Property Office,20/08/2015,Travel & Subsistence,IT Directorate,HRG UK,634657270,6.17,Not Applicable
Department for Business Innovation and Skills,Intellectual Property Office,19/08/2015,Travel & Subsistence,International Policy Directorate,HRG UK,634657502,-84.38,Not Applicable
Department for Business Innovation and Skills,Intellectual Property Office,20/08/2015,Travel & Subsistence,Patents Directorate,HRG UK,634658286,3.07,Not Applicable
Department for Business Innovation and Skills,Intellectual Property Office,19/08/2015,Travel & Subsistence,Trade Marks Directorate,HRG UK,634658286,-6.17,Not Applicable
Department for Business Innovation and Skills,Intellectual Property Office,20/08/2015,Travel & Subsistence,Innovation Directorate,HRG UK,634659626,213.85,Not Applicable
Department for Business Innovation and Skills,Intellectual Property Office,20/08/2015,Travel & Subsistence,Copyright and Enforcement Directorate,HRG UK,634659869,12.47,Not Applicable
Department for Business Innovation and Skills,Intellectual Property Office,20/08/2015,Travel & Subsistence,People Places & Services Directorate,HRG UK,634660002,5.73,Not Applicable
Department for Business Innovation and Skills,Intellectual Property Office,20/08/2015,Travel & Subsistence,People Places & Services Directorate,HRG UK,634660002,648.61,Not Applicable
Department for Business Innovation and Skills,Intellectual Property Office,19/08/2015,Travel & Subsistence,IT Directorate,HRG UK,634660002,-0.6,Not Applicable
Department for Business Innovation and Skills,Intellectual Property Office,19/08/2015,Travel & Subsistence,IT Directorate,HRG UK,634660002,-91.12,Not Applicable
Department for Business Innovation and Skills,Intellectual Property Office,19/08/2015,Travel & Subsistence,Copyright and Enforcement Directorate,HRG UK,634660074,26.91,Not Applicable
Department for Business Innovation and Skills,Intellectual Property Office,19/08/2015,Travel & Subsistence,Copyright and Enforcement Directorate,HRG UK,634660075,-27.02,Not Applicable
Department for Business Innovation and Skills,Intellectual Property Office,19/08/2015,Travel & Subsistence,Innovation Directorate,HRG UK,634660339,-0.06,Not Applicable
Department for Business Innovation and Skills,Intellectual Property Office,19/08/2015,Travel & Subsistence,Innovation Directorate,HRG UK,634660339,-3,Not Applicable
Department for Business Innovation and Skills,Intellectual Property Office,20/08/2015,Travel & Subsistence,International Policy Directorate,HRG UK,634660339,144.55,Not Applicable
Department for Business Innovation and Skills,Intellectual Property Office,20/08/2015,Travel & Subsistence,International Policy Directorate,HRG UK,634660339,0.84,Not Applicable
Department for Business Innovation and Skills,Intellectual Property Office,19/08/2015,Miscellaneous Expenses General,Innovation Directorate,HRG UK,634660903,-65.8,Not Applicable
Department for Business Innovation and Skills,Intellectual Property Office,20/08/2015,Travel & Subsistence,IT Directorate,HRG UK,634660903,45.86,Not Applicable
Department for Business Innovation and Skills,Intellectual Property Office,19/08/2015,Miscellaneous Expenses General,Innovation Directorate,HRG UK,634660904,-53.54,Not Applicable
Department for Business Innovation and Skills,Intellectual Property Office,20/08/2015,Travel & Subsistence,IT Directorate,HRG UK,634660904,106.67,Not Applicable
Department for Business Innovation and Skills,Intellectual Property Office,19/08/2015,Travel & Subsistence,Projects,HRG UK,634661446,-28.62,Not Applicable
Department for Business Innovation and Skills,Intellectual Property Office,19/08/2015,Travel & Subsistence,Projects,HRG UK,634661446,-0.18,Not Applicable
Department for Business Innovation and Skills,Intellectual Property Office,20/08/2015,Travel & Subsistence,Patents Directorate,HRG UK,634661446,5.1,Not Applicable
Department for Business Innovation and Skills,Intellectual Property Office,20/08/2015,Travel & Subsistence,Patents Directorate,HRG UK,634661446,534.26,Not Applicable
Department for Business Innovation and Skills,Intellectual Property Office,19/08/2015,Travel & Subsistence,Projects,HRG UK,634661446,-16.12,Not Applicable
Department for Business Innovation and Skills,Intellectual Property Office,19/08/2015,Travel & Subsistence,Projects,HRG UK,634661446,-0.12,Not Applicable
Department for Business Innovation and Skills,Intellectual Property Office,19/08/2015,Travel & Subsistence,International Policy Directorate,HRG UK,634662016,3.59,Not Applicable
Department for Business Innovation and Skills,Intellectual Property Office,20/08/2015,Travel & Subsistence,International Policy Directorate,HRG UK,634662017,-0.89,Not Applicable
Department for Business Innovation and Skills,Intellectual Property Office,20/08/2015,Travel & Subsistence,Patents Directorate,HRG UK,634662148,42.62,Not Applicable
Department for Business Innovation and Skills,Intellectual Property Office,20/08/2015,Travel & Subsistence,Patents Directorate,HRG UK,634662148,0.24,Not Applicable
Department for Business Innovation and Skills,Intellectual Property Office,19/08/2015,Travel & Subsistence,International Policy Directorate,HRG UK,634662148,-0.66,Not Applicable
Department for Business Innovation and Skills,Intellectual Property Office,19/08/2015,Travel & Subsistence,International Policy Directorate,HRG UK,634662148,-106.01,Not Applicable
Department for Business Innovation and Skills,Intellectual Property Office,19/08/2015,Travel & Subsistence,Projects,HRG UK,634662278,-0.06,Not Applicable
Department for Business Innovation and Skills,Intellectual Property Office,19/08/2015,Travel & Subsistence,Projects,HRG UK,634662278,-13.89,Not Applicable
Department for Business Innovation and Skills,Intellectual Property Office,20/08/2015,Travel & Subsistence,Patents Directorate,HRG UK,634662278,22.8,Not Applicable
Department for Business Innovation and Skills,Intellectual Property Office,20/08/2015,Travel & Subsistence,Patents Directorate,HRG UK,634662278,0.12,Not Applicable
Department for Business Innovation and Skills,Intellectual Property Office,20/08/2015,Travel & Subsistence,Innovation Directorate,HRG UK,634664003,78.04,Not Applicable
Department for Business Innovation and Skills,Intellectual Property Office,19/08/2015,Travel & Subsistence,People Places & Services Directorate,HRG UK,634664690,-0.6,Not Applicable
Department for Business Innovation and Skills,Intellectual Property Office,19/08/2015,Travel & Subsistence,People Places & Services Directorate,HRG UK,634664690,-100.68,Not Applicable
Department for Business Innovation and Skills,Intellectual Property Office,20/08/2015,Travel & Subsistence,Innovation Directorate,HRG UK,634664690,148.01,Not Applicable
Department for Business Innovation and Skills,Intellectual Property Office,20/08/2015,Travel & Subsistence,Innovation Directorate,HRG UK,634664690,5.74,Not Applicable
Department for Business Innovation and Skills,Intellectual Property Office,19/08/2015,Travel & Subsistence,International Policy Directorate,HRG UK,634664841,80.57,Not Applicable
Department for Business Innovation and Skills,Intellectual Property Office,19/08/2015,Travel & Subsistence,Innovation Directorate,HRG UK,634665368,-3.07,Not Applicable
Department for Business Innovation and Skills,Intellectual Property Office,20/08/2015,Travel & Subsistence,International Policy Directorate,HRG UK,634665368,216.92,Not Applicable
Department for Business Innovation and Skills,Intellectual Property Office,20/08/2015,Travel & Subsistence,International Policy Directorate,HRG UK,634665949,140.46,Not Applicable
Department for Business Innovation and Skills,Intellectual Property Office,19/08/2015,Travel & Subsistence,Innovation Directorate,HRG UK,634669606,-23.9,Not Applicable
Department for Business Innovation and Skills,Intellectual Property Office,19/08/2015,Travel & Subsistence,Innovation Directorate,HRG UK,634669606,-0.12,Not Applicable
Department for Business Innovation and Skills,Intellectual Property Office,20/08/2015,Travel & Subsistence,People Places & Services Directorate,HRG UK,634669606,0.66,Not Applicable
Department for Business Innovation and Skills,Intellectual Property Office,20/08/2015,Travel & Subsistence,People Places & Services Directorate,HRG UK,634669606,109.6,Not Applicable
Department for Business Innovation and Skills,Intellectual Property Office,19/08/2015,Travel & Subsistence,Innovation Directorate,HRG UK,634669607,-21.21,Not Applicable
Department for Business Innovation and Skills,Intellectual Property Office,19/08/2015,Travel & Subsistence,Innovation Directorate,HRG UK,634669607,-0.12,Not Applicable
Department for Business Innovation and Skills,Intellectual Property Office,20/08/2015,Travel & Subsistence,People Places & Services Directorate,HRG UK,634669607,0.3,Not Applicable
Department for Business Innovation and Skills,Intellectual Property Office,20/08/2015,Travel & Subsistence,People Places & Services Directorate,HRG UK,634669607,53.53,Not Applicable
Department for Business Innovation and Skills,Intellectual Property Office,20/08/2015,Travel & Subsistence,Innovation Directorate,HRG UK,634670250,-4.62,Not Applicable
Department for Business Innovation and Skills,Intellectual Property Office,20/08/2015,Travel & Subsistence,International Policy Directorate,HRG UK,634670328,-1.86,Not Applicable
Department for Business Innovation and Skills,Intellectual Property Office,20/08/2015,Travel & Subsistence,Innovation Directorate,HRG UK,634670353,3.07,Not Applicable
Department for Business Innovation and Skills,Intellectual Property Office,19/08/2015,Travel & Subsistence,Copyright and Enforcement Directorate,HRG UK,634670353,0.42,Not Applicable
Department for Business Innovation and Skills,Intellectual Property Office,19/08/2015,Travel & Subsistence,Copyright and Enforcement Directorate,HRG UK,634670353,74.22,Not Applicable
Department for Business Innovation and Skills,Intellectual Property Office,19/08/2015,Travel & Subsistence,International Policy Directorate,HRG UK,634670378,-1.87,Not Applicable
Department for Business Innovation and Skills,Intellectual Property Office,19/08/2015,Travel & Subsistence,Copyright and Enforcement Directorate,HRG UK,634670728,-268.81,Not Applicable
Department for Business Innovation and Skills,Intellectual Property Office,20/08/2015,Travel & Subsistence,International Policy Directorate,HRG UK,634670728,3.07,Not Applicable
Department for Business Innovation and Skills,Intellectual Property Office,19/08/2015,Miscellaneous Expenses General,Innovation Directorate,HRG UK,634670765,-45.87,Not Applicable
Department for Business Innovation and Skills,Intellectual Property Office,20/08/2015,Travel & Subsistence,IT Directorate,HRG UK,634670765,3.07,Not Applicable
Department for Business Innovation and Skills,Intellectual Property Office,19/08/2015,Travel & Subsistence,Innovation Directorate,HRG UK,634670795,-103.6,Not Applicable
Department for Business Innovation and Skills,Intellectual Property Office,20/08/2015,Travel & Subsistence,Innovation Directorate,HRG UK,634670807,0,Not Applicable
Department for Business Innovation and Skills,Intellectual Property Office,19/08/2015,Travel & Subsistence,Innovation Directorate,HRG UK,634670819,0,Not Applicable
Department for Business Innovation and Skills,Intellectual Property Office,20/08/2015,Travel & Subsistence,International Policy Directorate,HRG UK,634671084,-32.63,Not Applicable
Department for Business Innovation and Skills,Intellectual Property Office,20/08/2015,Travel & Subsistence,Innovation Directorate,HRG UK,634671164,3,Not Applicable
Department for Business Innovation and Skills,Intellectual Property Office,20/08/2015,Travel & Subsistence,Innovation Directorate,HRG UK,634671164,0.06,Not Applicable
Department for Business Innovation and Skills,Intellectual Property Office,19/08/2015,Travel & Subsistence,Copyright and Enforcement Directorate,HRG UK,634671164,-215.6,Not Applicable
Department for Business Innovation and Skills,Intellectual Property Office,19/08/2015,Travel & Subsistence,Copyright and Enforcement Directorate,HRG UK,634671164,-1.32,Not Applicable
Department for Business Innovation and Skills,Intellectual Property Office,20/08/2015,Travel & Subsistence,International Policy Directorate,HRG UK,634671282,-39.79,Not Applicable
Department for Business Innovation and Skills,Intellectual Property Office,19/08/2015,Miscellaneous Expenses General,Innovation Directorate,HRG UK,634672552,-53.54,Not Applicable
Department for Business Innovation and Skills,Intellectual Property Office,20/08/2015,Travel & Subsistence,IT Directorate,HRG UK,634672552,71.87,Not Applicable
Department for Business Innovation and Skills,Intellectual Property Office,19/08/2015,Travel & Subsistence,People Places & Services Directorate,HRG UK,634673897,-0.66,Not Applicable
Department for Business Innovation and Skills,Intellectual Property Office,19/08/2015,Travel & Subsistence,People Places & Services Directorate,HRG UK,634673897,-106.01,Not Applicable
Department for Business Innovation and Skills,Intellectual Property Office,20/08/2015,Travel & Subsistence,Finance Directorate,HRG UK,634673897,1.32,Not Applicable
Department for Business Innovation and Skills,Intellectual Property Office,20/08/2015,Travel & Subsistence,Finance Directorate,HRG UK,634673897,219.58,Not Applicable
Department for Business Innovation and Skills,Intellectual Property Office,20/08/2015,Travel & Subsistence,International Policy Directorate,HRG UK,634675528,92.22,Not Applicable
Department for Business Innovation and Skills,Intellectual Property Office,20/08/2015,Travel & Subsistence,Innovation Directorate,HRG UK,634676031,217.83,Not Applicable
Department for Business Innovation and Skills,Intellectual Property Office,19/08/2015,Miscellaneous Expenses General,Innovation Directorate,HRG UK,634676933,-137.57,Not Applicable
Department for Business Innovation and Skills,Intellectual Property Office,20/08/2015,Travel & Subsistence,IT Directorate,HRG UK,634676933,40.46,Not Applicable
Department for Business Innovation and Skills,Intellectual Property Office,19/08/2015,Miscellaneous Expenses General,Innovation Directorate,HRG UK,634676934,-45.87,Not Applicable
Department for Business Innovation and Skills,Intellectual Property Office,20/08/2015,Travel & Subsistence,IT Directorate,HRG UK,634676934,106.67,Not Applicable
Department for Business Innovation and Skills,Intellectual Property Office,19/08/2015,Miscellaneous Expenses General,Innovation Directorate,HRG UK,634677053,-45.87,Not Applicable
Department for Business Innovation and Skills,Intellectual Property Office,20/08/2015,Travel & Subsistence,IT Directorate,HRG UK,634677053,43.46,Not Applicable
Department for Business Innovation and Skills,Intellectual Property Office,19/08/2015,Miscellaneous Expenses General,Innovation Directorate,HRG UK,634677055,-53.54,Not Applicable
Department for Business Innovation and Skills,Intellectual Property Office,20/08/2015,Travel & Subsistence,IT Directorate,HRG UK,634677055,55.83,Not Applicable
Department for Business Innovation and Skills,Intellectual Property Office,19/08/2015,Travel & Subsistence,Patents Directorate,HRG UK,634678457,-3.24,Not Applicable
Department for Business Innovation and Skills,Intellectual Property Office,19/08/2015,Travel & Subsistence,Patents Directorate,HRG UK,634678457,-543.05,Not Applicable
Department for Business Innovation and Skills,Intellectual Property Office,20/08/2015,Travel & Subsistence,Trade Marks Directorate,HRG UK,634678457,104.16,Not Applicable
Department for Business Innovation and Skills,Intellectual Property Office,20/08/2015,Travel & Subsistence,Trade Marks Directorate,HRG UK,634678457,0.6,Not Applicable
Department for Business Innovation and Skills,Intellectual Property Office,19/08/2015,Travel & Subsistence,Patents Directorate,HRG UK,634678458,-0.54,Not Applicable
Department for Business Innovation and Skills,Intellectual Property Office,19/08/2015,Travel & Subsistence,Patents Directorate,HRG UK,634678458,-88.77,Not Applicable
Department for Business Innovation and Skills,Intellectual Property Office,20/08/2015,Travel & Subsistence,Trade Marks Directorate,HRG UK,634678458,45.57,Not Applicable
Department for Business Innovation and Skills,Intellectual Property Office,20/08/2015,Travel & Subsistence,Trade Marks Directorate,HRG UK,634678458,0.3,Not Applicable
Department for Business Innovation and Skills,Intellectual Property Office,20/08/2015,Travel & Subsistence,International Policy Directorate,HRG UK,634679445,58.81,Not Applicable
Department for Business Innovation and Skills,Intellectual Property Office,20/08/2015,Travel & Subsistence,People Places & Services Directorate,HRG UK,634679571,38.24,Not Applicable
Department for Business Innovation and Skills,Intellectual Property Office,20/08/2015,Travel & Subsistence,People Places & Services Directorate,HRG UK,634679571,0.24,Not Applicable
Department for Business Innovation and Skills,Intellectual Property Office,19/08/2015,Travel & Subsistence,IT Directorate,HRG UK,634679571,-106.01,Not Applicable
Department for Business Innovation and Skills,Intellectual Property Office,19/08/2015,Travel & Subsistence,IT Directorate,HRG UK,634679571,-0.66,Not Applicable
Department for Business Innovation and Skills,Intellectual Property Office,20/08/2015,Travel & Subsistence,Trade Marks Directorate,HRG UK,634683204,57.42,Not Applicable
Department for Business Innovation and Skills,Intellectual Property Office,19/08/2015,Travel & Subsistence,Trade Marks Directorate,HRG UK,634683204,-125.2,Not Applicable
Department for Business Innovation and Skills,Intellectual Property Office,19/08/2015,Travel & Subsistence,Copyright and Enforcement Directorate,HRG UK,634686386,-1.62,Not Applicable
Department for Business Innovation and Skills,Intellectual Property Office,19/08/2015,Travel & Subsistence,Copyright and Enforcement Directorate,HRG UK,634686386,-5.09,Not Applicable
Department for Business Innovation and Skills,Intellectual Property Office,20/08/2015,Travel & Subsistence,International Policy Directorate,HRG UK,634686386,114.56,Not Applicable
Department for Business Innovation and Skills,Intellectual Property Office,20/08/2015,Travel & Subsistence,International Policy Directorate,HRG UK,634686386,0.66,Not Applicable
Department for Business Innovation and Skills,Intellectual Property Office,19/08/2015,Travel & Subsistence,Copyright and Enforcement Directorate,HRG UK,634686387,-258.21,Not Applicable
Department for Business Innovation and Skills,Intellectual Property Office,20/08/2015,Travel & Subsistence,International Policy Directorate,HRG UK,634686387,57.83,Not Applicable
Department for Business Innovation and Skills,Intellectual Property Office,19/08/2015,Miscellaneous Expenses General,Innovation Directorate,HRG UK,634688158,110.64,Not Applicable
Department for Business Innovation and Skills,Intellectual Property Office,20/08/2015,Travel & Subsistence,IT Directorate,HRG UK,634688158,4.93,Not Applicable
Department for Business Innovation and Skills,Intellectual Property Office,19/08/2015,Miscellaneous Expenses General,Innovation Directorate,HRG UK,634688162,110.64,Not Applicable
Department for Business Innovation and Skills,Intellectual Property Office,20/08/2015,Travel & Subsistence,IT Directorate,HRG UK,634688162,4.93,Not Applicable
Department for Business Innovation and Skills,Intellectual Property Office,20/08/2015,Travel & Subsistence,Innovation Directorate,HRG UK,634688214,0,Not Applicable
Department for Business Innovation and Skills,Intellectual Property Office,20/08/2015,Travel & Subsistence,Innovation Directorate,HRG UK,634688439,0,Not Applicable
Department for Business Innovation and Skills,Intellectual Property Office,19/08/2015,Travel & Subsistence,Copyright and Enforcement Directorate,HRG UK,634688484,-6.64,Not Applicable
Department for Business Innovation and Skills,Intellectual Property Office,20/08/2015,Travel & Subsistence,International Policy Directorate,HRG UK,634688484,3.07,Not Applicable
Department for Business Innovation and Skills,Intellectual Property Office,19/08/2015,Travel & Subsistence,Innovation Directorate,HRG UK,634688909,0,Not Applicable
Department for Business Innovation and Skills,Intellectual Property Office,20/08/2015,Travel & Subsistence,Innovation Directorate,HRG UK,634688911,-112.15,Not Applicable
Department for Business Innovation and Skills,Intellectual Property Office,19/08/2015,Travel & Subsistence,Innovation Directorate,HRG UK,634688945,-47.76,Not Applicable
Department for Business Innovation and Skills,Intellectual Property Office,19/08/2015,Miscellaneous Expenses General,Innovation Directorate,HRG UK,634689009,-160.61,Not Applicable
Department for Business Innovation and Skills,Intellectual Property Office,20/08/2015,Travel & Subsistence,IT Directorate,HRG UK,634689009,3.07,Not Applicable
Department for Business Innovation and Skills,Intellectual Property Office,19/08/2015,Miscellaneous Expenses General,Innovation Directorate,HRG UK,634689039,-52.23,Not Applicable
Department for Business Innovation and Skills,Intellectual Property Office,20/08/2015,Travel & Subsistence,IT Directorate,HRG UK,634689039,3.07,Not Applicable
Department for Business Innovation and Skills,Intellectual Property Office,19/08/2015,Travel & Subsistence,Innovation Directorate,HRG UK,634689421,-42.79,Not Applicable
Department for Business Innovation and Skills,Intellectual Property Office,19/08/2015,Travel & Subsistence,Innovation Directorate,HRG UK,634689450,-103.6,Not Applicable
Department for Business Innovation and Skills,Intellectual Property Office,20/08/2015,Travel & Subsistence,Innovation Directorate,HRG UK,634689720,-39.79,Not Applicable
Department for Business Innovation and Skills,Intellectual Property Office,20/08/2015,Travel & Subsistence,Copyright and Enforcement Directorate,HRG UK,634691401,216.92,Not Applicable
Department for Business Innovation and Skills,Intellectual Property Office,19/08/2015,Travel & Subsistence,IT Directorate,HRG UK,634691401,-3.07,Not Applicable
Department for Business Innovation and Skills,Intellectual Property Office,19/08/2015,Travel & Subsistence,International Policy Directorate,HRG UK,634691580,104.17,Not Applicable
Department for Business Innovation and Skills,Intellectual Property Office,20/08/2015,Travel & Subsistence,International Policy Directorate,HRG UK,634691582,0.36,Not Applicable
Department for Business Innovation and Skills,Intellectual Property Office,20/08/2015,Travel & Subsistence,International Policy Directorate,HRG UK,634691582,57.47,Not Applicable
Department for Business Innovation and Skills,Intellectual Property Office,19/08/2015,Travel & Subsistence,Patents Directorate,HRG UK,634691582,-204.74,Not Applicable
Department for Business Innovation and Skills,Intellectual Property Office,19/08/2015,Travel & Subsistence,Patents Directorate,HRG UK,634691582,-1.2,Not Applicable
Department for Business Innovation and Skills,Intellectual Property Office,20/08/2015,Travel & Subsistence,International Policy Directorate,HRG UK,634692035,0.66,Not Applicable
Department for Business Innovation and Skills,Intellectual Property Office,20/08/2015,Travel & Subsistence,International Policy Directorate,HRG UK,634692035,114.56,Not Applicable
Department for Business Innovation and Skills,Intellectual Property Office,19/08/2015,Travel & Subsistence,Patents Directorate,HRG UK,634692035,-87.29,Not Applicable
Department for Business Innovation and Skills,Intellectual Property Office,19/08/2015,Travel & Subsistence,Patents Directorate,HRG UK,634692035,-0.54,Not Applicable
Department for Business Innovation and Skills,Intellectual Property Office,20/08/2015,Travel & Subsistence,International Policy Directorate,HRG UK,634692044,0.36,Not Applicable
Department for Business Innovation and Skills,Intellectual Property Office,20/08/2015,Travel & Subsistence,International Policy Directorate,HRG UK,634692044,57.47,Not Applicable
Department for Business Innovation and Skills,Intellectual Property Office,19/08/2015,Travel & Subsistence,Patents Directorate,HRG UK,634692044,-94.75,Not Applicable
Department for Business Innovation and Skills,Intellectual Property Office,19/08/2015,Travel & Subsistence,Patents Directorate,HRG UK,634692044,-0.54,Not Applicable
Department for Business Innovation and Skills,Intellectual Property Office,19/08/2015,Travel & Subsistence,People Places & Services Directorate,HRG UK,634692678,-106.01,Not Applicable
Department for Business Innovation and Skills,Intellectual Property Office,19/08/2015,Travel & Subsistence,People Places & Services Directorate,HRG UK,634692678,-0.66,Not Applicable
Department for Business Innovation and Skills,Intellectual Property Office,20/08/2015,Travel & Subsistence,Finance Directorate,HRG UK,634692678,-0.36,Not Applicable
Department for Business Innovation and Skills,Intellectual Property Office,20/08/2015,Travel & Subsistence,Finance Directorate,HRG UK,634692678,-58.89,Not Applicable
Department for Business Innovation and Skills,Intellectual Property Office,19/08/2015,Miscellaneous Expenses General,Innovation Directorate,HRG UK,634692704,-71.87,Not Applicable
Department for Business Innovation and Skills,Intellectual Property Office,20/08/2015,Travel & Subsistence,IT Directorate,HRG UK,634692704,-90.93,Not Applicable
Department for Business Innovation and Skills,Intellectual Property Office,20/08/2015,Travel & Subsistence,Copyright and Enforcement Directorate,HRG UK,634694733,-5.98,Not Applicable
Department for Business Innovation and Skills,Intellectual Property Office,19/08/2015,Travel & Subsistence,Copyright and Enforcement Directorate,HRG UK,634694734,-5.98,Not Applicable
Department for Business Innovation and Skills,Intellectual Property Office,20/08/2015,Travel & Subsistence,Trade Marks Directorate,HRG UK,634694769,9.73,Not Applicable
Department for Business Innovation and Skills,Intellectual Property Office,19/08/2015,Travel & Subsistence,International Policy Directorate,HRG UK,634694769,-162.33,Not Applicable
Department for Business Innovation and Skills,Intellectual Property Office,19/08/2015,Travel & Subsistence,Patents Directorate,HRG UK,634697461,-632,Not Applicable
Department for Business Innovation and Skills,Intellectual Property Office,20/08/2015,Travel & Subsistence,Trade Marks Directorate,HRG UK,634697461,15.03,Not Applicable
Department for Business Innovation and Skills,Intellectual Property Office,20/08/2015,Travel & Subsistence,Trade Marks Directorate,HRG UK,634697461,0.12,Not Applicable
Department for Business Innovation and Skills,Intellectual Property Office,20/08/2015,Travel & Subsistence,Trade Marks Directorate,HRG UK,634697531,15.03,Not Applicable
Department for Business Innovation and Skills,Intellectual Property Office,20/08/2015,Travel & Subsistence,Trade Marks Directorate,HRG UK,634697531,0.12,Not Applicable
Department for Business Innovation and Skills,Intellectual Property Office,19/08/2015,Travel & Subsistence,International Policy Directorate,HRG UK,634697531,-172.33,Not Applicable
Department for Business Innovation and Skills,Intellectual Property Office,19/08/2015,Travel & Subsistence,Patents Directorate,HRG UK,634697719,-2064.56,Not Applicable
Department for Business Innovation and Skills,Intellectual Property Office,20/08/2015,Travel & Subsistence,Trade Marks Directorate,HRG UK,634697719,15.15,Not Applicable
Department for Business Innovation and Skills,Intellectual Property Office,19/08/2015,Travel & Subsistence,Patents Directorate,HRG UK,634697720,-12.36,Not Applicable
Department for Business Innovation and Skills,Intellectual Property Office,19/08/2015,Travel & Subsistence,Patents Directorate,HRG UK,634697720,-5.11,Not Applicable
Department for Business Innovation and Skills,Intellectual Property Office,20/08/2015,Travel & Subsistence,Trade Marks Directorate,HRG UK,634697720,15.03,Not Applicable
Department for Business Innovation and Skills,Intellectual Property Office,20/08/2015,Travel & Subsistence,Trade Marks Directorate,HRG UK,634697720,0.12,Not Applicable
Department for Business Innovation and Skills,Intellectual Property Office,19/08/2015,Travel & Subsistence,International Policy Directorate,HRG UK,634698180,-0.66,Not Applicable
Department for Business Innovation and Skills,Intellectual Property Office,19/08/2015,Travel & Subsistence,International Policy Directorate,HRG UK,634698180,-114.56,Not Applicable
Department for Business Innovation and Skills,Intellectual Property Office,20/08/2015,Travel & Subsistence,People Places & Services Directorate,HRG UK,634698180,1.38,Not Applicable
Department for Business Innovation and Skills,Intellectual Property Office,20/08/2015,Travel & Subsistence,People Places & Services Directorate,HRG UK,634698180,225.51,Not Applicable
Department for Business Innovation and Skills,Intellectual Property Office,20/08/2015,Travel & Subsistence,Patents Directorate,HRG UK,634698181,1.32,Not Applicable
Department for Business Innovation and Skills,Intellectual Property Office,20/08/2015,Travel & Subsistence,Patents Directorate,HRG UK,634698181,216.19,Not Applicable
Department for Business Innovation and Skills,Intellectual Property Office,19/08/2015,Travel & Subsistence,Trade Marks Directorate,HRG UK,634698181,-36.64,Not Applicable
Department for Business Innovation and Skills,Intellectual Property Office,19/08/2015,Travel & Subsistence,Trade Marks Directorate,HRG UK,634698181,-0.24,Not Applicable
Department for Business Innovation and Skills,Intellectual Property Office,19/08/2015,Travel & Subsistence,Copyright and Enforcement Directorate,HRG UK,634698425,90.39,Not Applicable
Department for Business Innovation and Skills,Intellectual Property Office,19/08/2015,Travel & Subsistence,Copyright and Enforcement Directorate,HRG UK,634698425,0.54,Not Applicable
Department for Business Innovation and Skills,Intellectual Property Office,20/08/2015,Travel & Subsistence,Copyright and Enforcement Directorate,HRG UK,634698425,0.3,Not Applicable
Department for Business Innovation and Skills,Intellectual Property Office,20/08/2015,Travel & Subsistence,Copyright and Enforcement Directorate,HRG UK,634698425,48.83,Not Applicable
Department for Business Innovation and Skills,Intellectual Property Office,19/08/2015,Travel & Subsistence,Copyright and Enforcement Directorate,HRG UK,634698426,38.92,Not Applicable
Department for Business Innovation and Skills,Intellectual Property Office,19/08/2015,Travel & Subsistence,Copyright and Enforcement Directorate,HRG UK,634698426,0.24,Not Applicable
Department for Business Innovation and Skills,Intellectual Property Office,20/08/2015,Travel & Subsistence,Copyright and Enforcement Directorate,HRG UK,634698426,0.3,Not Applicable
Department for Business Innovation and Skills,Intellectual Property Office,20/08/2015,Travel & Subsistence,Copyright and Enforcement Directorate,HRG UK,634698426,45.26,Not Applicable
Department for Business Innovation and Skills,Intellectual Property Office,19/08/2015,Travel & Subsistence,Copyright and Enforcement Directorate,HRG UK,634698696,-88.77,Not Applicable
Department for Business Innovation and Skills,Intellectual Property Office,19/08/2015,Travel & Subsistence,Copyright and Enforcement Directorate,HRG UK,634698696,-0.54,Not Applicable
Department for Business Innovation and Skills,Intellectual Property Office,20/08/2015,Travel & Subsistence,Copyright and Enforcement Directorate,HRG UK,634698696,0.3,Not Applicable
Department for Business Innovation and Skills,Intellectual Property Office,20/08/2015,Travel & Subsistence,Copyright and Enforcement Directorate,HRG UK,634698696,48.83,Not Applicable
Department for Business Innovation and Skills,Intellectual Property Office,19/08/2015,Travel & Subsistence,Copyright and Enforcement Directorate,HRG UK,634698697,-3.07,Not Applicable
Department for Business Innovation and Skills,Intellectual Property Office,20/08/2015,Travel & Subsistence,Copyright and Enforcement Directorate,HRG UK,634698697,45.56,Not Applicable
Department for Business Innovation and Skills,Intellectual Property Office,20/08/2015,Travel & Subsistence,International Policy Directorate,HRG UK,634700496,0.3,Not Applicable
Department for Business Innovation and Skills,Intellectual Property Office,20/08/2015,Travel & Subsistence,International Policy Directorate,HRG UK,634700496,54.12,Not Applicable
Department for Business Innovation and Skills,Intellectual Property Office,19/08/2015,Travel & Subsistence,Patents Directorate,HRG UK,634700496,-1.2,Not Applicable
Department for Business Innovation and Skills,Intellectual Property Office,19/08/2015,Travel & Subsistence,Patents Directorate,HRG UK,634700496,-204.74,Not Applicable
Department for Business Innovation and Skills,Intellectual Property Office,20/08/2015,Travel & Subsistence,International Policy Directorate,HRG UK,634700497,0.24,Not Applicable
Department for Business Innovation and Skills,Intellectual Property Office,20/08/2015,Travel & Subsistence,International Policy Directorate,HRG UK,634700497,39.04,Not Applicable
Department for Business Innovation and Skills,Intellectual Property Office,19/08/2015,Travel & Subsistence,Patents Directorate,HRG UK,634700497,1.08,Not Applicable
Department for Business Innovation and Skills,Intellectual Property Office,19/08/2015,Travel & Subsistence,Patents Directorate,HRG UK,634700497,183.61,Not Applicable
Department for Business Innovation and Skills,Intellectual Property Office,19/08/2015,Travel & Subsistence,Copyright and Enforcement Directorate,HRG UK,634700580,-79.58,Not Applicable
Department for Business Innovation and Skills,Intellectual Property Office,20/08/2015,Travel & Subsistence,Copyright and Enforcement Directorate,HRG UK,634703070,-63.81,Not Applicable
Department for Business Innovation and Skills,Intellectual Property Office,20/08/2015,Travel & Subsistence,Copyright and Enforcement Directorate,HRG UK,634707459,111.58,Not Applicable
Department for Business Innovation and Skills,Intellectual Property Office,20/08/2015,Travel & Subsistence,Copyright and Enforcement Directorate,HRG UK,634707459,0.66,Not Applicable
Department for Business Innovation and Skills,Intellectual Property Office,19/08/2015,Travel & Subsistence,Copyright and Enforcement Directorate,HRG UK,634707459,-57.06,Not Applicable
Department for Business Innovation and Skills,Intellectual Property Office,19/08/2015,Travel & Subsistence,Copyright and Enforcement Directorate,HRG UK,634707459,-0.36,Not Applicable
Department for Business Innovation and Skills,Intellectual Property Office,20/08/2015,Travel & Subsistence,Copyright and Enforcement Directorate,HRG UK,634707460,54.52,Not Applicable
Department for Business Innovation and Skills,Intellectual Property Office,20/08/2015,Travel & Subsistence,Copyright and Enforcement Directorate,HRG UK,634707460,0.3,Not Applicable
Department for Business Innovation and Skills,Intellectual Property Office,19/08/2015,Travel & Subsistence,Copyright and Enforcement Directorate,HRG UK,634707460,-42.62,Not Applicable
Department for Business Innovation and Skills,Intellectual Property Office,19/08/2015,Travel & Subsistence,Copyright and Enforcement Directorate,HRG UK,634707460,-0.24,Not Applicable
Department for Business Innovation and Skills,Intellectual Property Office,20/08/2015,Travel & Subsistence,Innovation Directorate,HRG UK,634708296,50.95,Not Applicable
Department for Business Innovation and Skills,Intellectual Property Office,20/08/2015,Travel & Subsistence,Innovation Directorate,HRG UK,634708592,52.43,Not Applicable
Department for Business Innovation and Skills,Intellectual Property Office,19/08/2015,Travel & Subsistence,Copyright and Enforcement Directorate,HRG UK,634708667,-227.98,Not Applicable
Department for Business Innovation and Skills,Intellectual Property Office,19/08/2015,Travel & Subsistence,Copyright and Enforcement Directorate,HRG UK,634708667,-1.38,Not Applicable
Department for Business Innovation and Skills,Intellectual Property Office,20/08/2015,Travel & Subsistence,International Policy Directorate,HRG UK,634708667,144.55,Not Applicable
Department for Business Innovation and Skills,Intellectual Property Office,20/08/2015,Travel & Subsistence,International Policy Directorate,HRG UK,634708667,0.84,Not Applicable
Department for Business Innovation and Skills,Intellectual Property Office,20/08/2015,Travel & Subsistence,Copyright and Enforcement Directorate,HRG UK,634708781,0.3,Not Applicable
Department for Business Innovation and Skills,Intellectual Property Office,20/08/2015,Travel & Subsistence,Copyright and Enforcement Directorate,HRG UK,634708781,54.12,Not Applicable
Department for Business Innovation and Skills,Intellectual Property Office,19/08/2015,Travel & Subsistence,Copyright and Enforcement Directorate,HRG UK,634708781,-88.77,Not Applicable
Department for Business Innovation and Skills,Intellectual Property Office,19/08/2015,Travel & Subsistence,Copyright and Enforcement Directorate,HRG UK,634708781,-0.54,Not Applicable
Department for Business Innovation and Skills,Intellectual Property Office,20/08/2015,Travel & Subsistence,Copyright and Enforcement Directorate,HRG UK,634708782,0.6,Not Applicable
Department for Business Innovation and Skills,Intellectual Property Office,20/08/2015,Travel & Subsistence,Copyright and Enforcement Directorate,HRG UK,634708782,103.07,Not Applicable
Department for Business Innovation and Skills,Intellectual Property Office,19/08/2015,Travel & Subsistence,Copyright and Enforcement Directorate,HRG UK,634708782,-0.66,Not Applicable
Department for Business Innovation and Skills,Intellectual Property Office,19/08/2015,Travel & Subsistence,Copyright and Enforcement Directorate,HRG UK,634708782,-106.01,Not Applicable
Department for Business Innovation and Skills,Intellectual Property Office,20/08/2015,Travel & Subsistence,Innovation Directorate,HRG UK,634711802,17.44,Not Applicable
Department for Business Innovation and Skills,Intellectual Property Office,19/08/2015,Travel & Subsistence,People Places & Services Directorate,HRG UK,634712033,-1.32,Not Applicable
Department for Business Innovation and Skills,Intellectual Property Office,19/08/2015,Travel & Subsistence,People Places & Services Directorate,HRG UK,634712033,-215.6,Not Applicable
Department for Business Innovation and Skills,Intellectual Property Office,20/08/2015,Travel & Subsistence,People Places & Services Directorate,HRG UK,634712033,0.66,Not Applicable
Department for Business Innovation and Skills,Intellectual Property Office,20/08/2015,Travel & Subsistence,People Places & Services Directorate,HRG UK,634712033,109.6,Not Applicable
Department for Business Innovation and Skills,Intellectual Property Office,19/08/2015,Travel & Subsistence,People Places & Services Directorate,HRG UK,634712034,-1.32,Not Applicable
Department for Business Innovation and Skills,Intellectual Property Office,19/08/2015,Travel & Subsistence,People Places & Services Directorate,HRG UK,634712034,-215.6,Not Applicable
Department for Business Innovation and Skills,Intellectual Property Office,20/08/2015,Travel & Subsistence,People Places & Services Directorate,HRG UK,634712034,0.3,Not Applicable
Department for Business Innovation and Skills,Intellectual Property Office,20/08/2015,Travel & Subsistence,People Places & Services Directorate,HRG UK,634712034,53.53,Not Applicable
Department for Business Innovation and Skills,Intellectual Property Office,20/08/2015,Travel & Subsistence,International Policy Directorate,HRG UK,634712049,1.38,Not Applicable
Department for Business Innovation and Skills,Intellectual Property Office,20/08/2015,Travel & Subsistence,International Policy Directorate,HRG UK,634712049,227.98,Not Applicable
Department for Business Innovation and Skills,Intellectual Property Office,19/08/2015,Travel & Subsistence,Patents Directorate,HRG UK,634712049,-0.3,Not Applicable
Department for Business Innovation and Skills,Intellectual Property Office,19/08/2015,Travel & Subsistence,Patents Directorate,HRG UK,634712049,-45.57,Not Applicable
Department for Business Innovation and Skills,Intellectual Property Office,20/08/2015,Travel & Subsistence,People Places & Services Directorate,HRG UK,634712056,1.38,Not Applicable
Department for Business Innovation and Skills,Intellectual Property Office,20/08/2015,Travel & Subsistence,People Places & Services Directorate,HRG UK,634712056,227.98,Not Applicable
Department for Business Innovation and Skills,Intellectual Property Office,19/08/2015,Travel & Subsistence,IT Directorate,HRG UK,634712056,-0.66,Not Applicable
Department for Business Innovation and Skills,Intellectual Property Office,19/08/2015,Travel & Subsistence,IT Directorate,HRG UK,634712056,-106.01,Not Applicable
Department for Business Innovation and Skills,Intellectual Property Office,19/08/2015,Travel & Subsistence,Copyright and Enforcement Directorate,HRG UK,634712064,122.69,Not Applicable
Department for Business Innovation and Skills,Intellectual Property Office,20/08/2015,Travel & Subsistence,Copyright and Enforcement Directorate,HRG UK,634712688,-96.94,Not Applicable
Department for Business Innovation and Skills,Intellectual Property Office,19/08/2015,Miscellaneous Expenses General,Innovation Directorate,HRG UK,634720384,-3.07,Not Applicable
Department for Business Innovation and Skills,Intellectual Property Office,20/08/2015,Travel & Subsistence,IT Directorate,HRG UK,634720384,6.17,Not Applicable
Department for Business Innovation and Skills,Intellectual Property Office,19/08/2015,Travel & Subsistence,Copyright and Enforcement Directorate,HRG UK,634720656,-3.07,Not Applicable
Department for Business Innovation and Skills,Intellectual Property Office,20/08/2015,Travel & Subsistence,International Policy Directorate,HRG UK,634720656,3.07,Not Applicable
Department for Business Innovation and Skills,Intellectual Property Office,19/08/2015,Travel & Subsistence,Innovation Directorate,HRG UK,634721167,-217.83,Not Applicable
Department for Business Innovation and Skills,Intellectual Property Office,20/08/2015,Travel & Subsistence,Innovation Directorate,HRG UK,634722657,64.82,Not Applicable
Department for Business Innovation and Skills,Intellectual Property Office,20/08/2015,Travel & Subsistence,Innovation Directorate,HRG UK,634722658,-46.45,Not Applicable
Department for Business Innovation and Skills,Intellectual Property Office,20/08/2015,Travel & Subsistence,Innovation Directorate,HRG UK,634722659,-153.03,Not Applicable
Department for Business Innovation and Skills,Intellectual Property Office,20/08/2015,Travel & Subsistence,Innovation Directorate,HRG UK,634722660,-37.48,Not Applicable
Department for Business Innovation and Skills,Intellectual Property Office,19/08/2015,Travel & Subsistence,People Places & Services Directorate,HRG UK,634723020,-0.24,Not Applicable
Department for Business Innovation and Skills,Intellectual Property Office,19/08/2015,Travel & Subsistence,People Places & Services Directorate,HRG UK,634723020,-38.24,Not Applicable
Department for Business Innovation and Skills,Intellectual Property Office,20/08/2015,Travel & Subsistence,Patents Directorate,HRG UK,634723020,61.05,Not Applicable
Department for Business Innovation and Skills,Intellectual Property Office,20/08/2015,Travel & Subsistence,Patents Directorate,HRG UK,634723020,0.36,Not Applicable
Department for Business Innovation and Skills,Intellectual Property Office,19/08/2015,Travel & Subsistence,People Places & Services Directorate,HRG UK,634723021,-644.71,Not Applicable
Department for Business Innovation and Skills,Intellectual Property Office,20/08/2015,Travel & Subsistence,Patents Directorate,HRG UK,634723021,111.64,Not Applicable
Department for Business Innovation and Skills,Intellectual Property Office,19/08/2015,Travel & Subsistence,Innovation Directorate,HRG UK,634723022,64.4,Not Applicable
Department for Business Innovation and Skills,Intellectual Property Office,19/08/2015,Travel & Subsistence,Innovation Directorate,HRG UK,634723023,50.76,Not Applicable
Department for Business Innovation and Skills,Intellectual Property Office,20/08/2015,Travel & Subsistence,Innovation Directorate,HRG UK,634723122,107.19,Not Applicable
Department for Business Innovation and Skills,Intellectual Property Office,20/08/2015,Travel & Subsistence,Innovation Directorate,HRG UK,634723123,50.76,Not Applicable
Department for Business Innovation and Skills,Intellectual Property Office,19/08/2015,Travel & Subsistence,People Places & Services Directorate,HRG UK,634723124,-4.93,Not Applicable
Department for Business Innovation and Skills,Intellectual Property Office,20/08/2015,Travel & Subsistence,People Places & Services Directorate,HRG UK,634723124,216.92,Not Applicable
Department for Business Innovation and Skills,Intellectual Property Office,20/08/2015,Travel & Subsistence,Innovation Directorate,HRG UK,634723322,0.3,Not Applicable
Department for Business Innovation and Skills,Intellectual Property Office,20/08/2015,Travel & Subsistence,Innovation Directorate,HRG UK,634723322,54.12,Not Applicable
Department for Business Innovation and Skills,Intellectual Property Office,19/08/2015,Travel & Subsistence,Copyright and Enforcement Directorate,HRG UK,634723322,-0.66,Not Applicable
Department for Business Innovation and Skills,Intellectual Property Office,19/08/2015,Travel & Subsistence,Copyright and Enforcement Directorate,HRG UK,634723322,-108,Not Applicable
Department for Business Innovation and Skills,Intellectual Property Office,20/08/2015,Travel & Subsistence,Innovation Directorate,HRG UK,634723323,0.24,Not Applicable
Department for Business Innovation and Skills,Intellectual Property Office,20/08/2015,Travel & Subsistence,Innovation Directorate,HRG UK,634723323,39.04,Not Applicable
Department for Business Innovation and Skills,Intellectual Property Office,19/08/2015,Travel & Subsistence,Copyright and Enforcement Directorate,HRG UK,634723323,-0.36,Not Applicable
Department for Business Innovation and Skills,Intellectual Property Office,19/08/2015,Travel & Subsistence,Copyright and Enforcement Directorate,HRG UK,634723323,-58.06,Not Applicable
Department for Business Innovation and Skills,Intellectual Property Office,19/08/2015,Travel & Subsistence,Copyright and Enforcement Directorate,HRG UK,634724495,107.19,Not Applicable
Department for Business Innovation and Skills,Intellectual Property Office,20/08/2015,Travel & Subsistence,Copyright and Enforcement Directorate,HRG UK,634724496,50.76,Not Applicable
Department for Business Innovation and Skills,Intellectual Property Office,20/08/2015,Travel & Subsistence,Innovation Directorate,HRG UK,634726402,-198.5,Not Applicable
Department for Business Innovation and Skills,Intellectual Property Office,19/08/2015,Travel & Subsistence,IT Directorate,HRG UK,634727397,-6.17,Not Applicable
Department for Business Innovation and Skills,Intellectual Property Office,20/08/2015,Travel & Subsistence,People Places & Services Directorate,HRG UK,634727397,57.06,Not Applicable
Department for Business Innovation and Skills,Intellectual Property Office,20/08/2015,Travel & Subsistence,People Places & Services Directorate,HRG UK,634727397,0.36,Not Applicable
Department for Business Innovation and Skills,Intellectual Property Office,19/08/2015,Travel & Subsistence,IT Directorate,HRG UK,634727398,90.39,Not Applicable
Department for Business Innovation and Skills,Intellectual Property Office,19/08/2015,Travel & Subsistence,IT Directorate,HRG UK,634727398,0.54,Not Applicable
Department for Business Innovation and Skills,Intellectual Property Office,20/08/2015,Travel & Subsistence,People Places & Services Directorate,HRG UK,634727398,106.01,Not Applicable
Department for Business Innovation and Skills,Intellectual Property Office,20/08/2015,Travel & Subsistence,People Places & Services Directorate,HRG UK,634727398,0.66,Not Applicable
Department for Business Innovation and Skills,Intellectual Property Office,20/08/2015,Travel & Subsistence,Copyright and Enforcement Directorate,HRG UK,634728003,152.34,Not Applicable
Department for Business Innovation and Skills,Intellectual Property Office,20/08/2015,Travel & Subsistence,Copyright and Enforcement Directorate,HRG UK,634728148,57.14,Not Applicable
Department for Business Innovation and Skills,Intellectual Property Office,19/08/2015,Travel & Subsistence,Copyright and Enforcement Directorate,HRG UK,634728388,21.44,Not Applicable
Department for Business Innovation and Skills,Intellectual Property Office,19/08/2015,Travel & Subsistence,Innovation Directorate,HRG UK,634729598,-65.89,Not Applicable
Department for Business Innovation and Skills,Intellectual Property Office,19/08/2015,Travel & Subsistence,Innovation Directorate,HRG UK,634729599,12.29,Not Applicable
Department for Business Innovation and Skills,Intellectual Property Office,19/08/2015,Travel & Subsistence,People Places & Services Directorate,HRG UK,634731945,-215.6,Not Applicable
Department for Business Innovation and Skills,Intellectual Property Office,19/08/2015,Travel & Subsistence,People Places & Services Directorate,HRG UK,634731945,-1.32,Not Applicable
Department for Business Innovation and Skills,Intellectual Property Office,20/08/2015,Travel & Subsistence,People Places & Services Directorate,HRG UK,634731945,0.06,Not Applicable
Department for Business Innovation and Skills,Intellectual Property Office,20/08/2015,Travel & Subsistence,People Places & Services Directorate,HRG UK,634731945,9.67,Not Applicable
Department for Business Innovation and Skills,Intellectual Property Office,19/08/2015,Travel & Subsistence,People Places & Services Directorate,HRG UK,634731990,-3.07,Not Applicable
Department for Business Innovation and Skills,Intellectual Property Office,20/08/2015,Travel & Subsistence,People Places & Services Directorate,HRG UK,634731990,0.06,Not Applicable
Department for Business Innovation and Skills,Intellectual Property Office,20/08/2015,Travel & Subsistence,People Places & Services Directorate,HRG UK,634731990,9.67,Not Applicable
Department for Business Innovation and Skills,Intellectual Property Office,20/08/2015,Travel & Subsistence,Patents Directorate,HRG UK,634734636,1.2,Not Applicable
Department for Business Innovation and Skills,Intellectual Property Office,20/08/2015,Travel & Subsistence,Patents Directorate,HRG UK,634734636,204.74,Not Applicable
Department for Business Innovation and Skills,Intellectual Property Office,19/08/2015,Travel & Subsistence,International Policy Directorate,HRG UK,634734636,-46.66,Not Applicable
Department for Business Innovation and Skills,Intellectual Property Office,19/08/2015,Travel & Subsistence,International Policy Directorate,HRG UK,634734636,-0.3,Not Applicable
Department for Business Innovation and Skills,Intellectual Property Office,20/08/2015,Travel & Subsistence,Patents Directorate,HRG UK,634736000,3.07,Not Applicable
Department for Business Innovation and Skills,Intellectual Property Office,19/08/2015,Travel & Subsistence,International Policy Directorate,HRG UK,634736000,-3.07,Not Applicable
Department for Business Innovation and Skills,Intellectual Property Office,19/08/2015,Travel & Subsistence,People Places & Services Directorate,HRG UK,634737598,-3.07,Not Applicable
Department for Business Innovation and Skills,Intellectual Property Office,20/08/2015,Travel & Subsistence,People Places & Services Directorate,HRG UK,634737598,21.03,Not Applicable
Department for Business Innovation and Skills,Intellectual Property Office,19/08/2015,Travel & Subsistence,People Places & Services Directorate,HRG UK,634737643,194.29,Not Applicable
Department for Business Innovation and Skills,Intellectual Property Office,19/08/2015,Travel & Subsistence,People Places & Services Directorate,HRG UK,634737643,1.14,Not Applicable
Department for Business Innovation and Skills,Intellectual Property Office,20/08/2015,Travel & Subsistence,People Places & Services Directorate,HRG UK,634737643,0.66,Not Applicable
Department for Business Innovation and Skills,Intellectual Property Office,20/08/2015,Travel & Subsistence,People Places & Services Directorate,HRG UK,634737643,109.6,Not Applicable
Department for Business Innovation and Skills,Intellectual Property Office,19/08/2015,Travel & Subsistence,People Places & Services Directorate,HRG UK,634737644,-3.07,Not Applicable
Department for Business Innovation and Skills,Intellectual Property Office,20/08/2015,Travel & Subsistence,People Places & Services Directorate,HRG UK,634737644,0.3,Not Applicable
Department for Business Innovation and Skills,Intellectual Property Office,20/08/2015,Travel & Subsistence,People Places & Services Directorate,HRG UK,634737644,53.53,Not Applicable
Department for Business Innovation and Skills,Intellectual Property Office,19/08/2015,Travel & Subsistence,Innovation Directorate,HRG UK,634737861,213.85,Not Applicable
Department for Business Innovation and Skills,Intellectual Property Office,19/08/2015,Travel & Subsistence,People Places & Services Directorate,HRG UK,634737913,-4.93,Not Applicable
Department for Business Innovation and Skills,Intellectual Property Office,20/08/2015,Travel & Subsistence,People Places & Services Directorate,HRG UK,634737913,0.12,Not Applicable
Department for Business Innovation and Skills,Intellectual Property Office,20/08/2015,Travel & Subsistence,People Places & Services Directorate,HRG UK,634737913,20.91,Not Applicable
Department for Business Innovation and Skills,Intellectual Property Office,19/08/2015,Miscellaneous Expenses General,Innovation Directorate,HRG UK,634738555,-108.66,Not Applicable
Department for Business Innovation and Skills,Intellectual Property Office,20/08/2015,Travel & Subsistence,IT Directorate,HRG UK,634738555,45.86,Not Applicable
Department for Business Innovation and Skills,Intellectual Property Office,19/08/2015,Miscellaneous Expenses General,Innovation Directorate,HRG UK,634738556,-50.54,Not Applicable
Department for Business Innovation and Skills,Intellectual Property Office,20/08/2015,Travel & Subsistence,IT Directorate,HRG UK,634738556,106.67,Not Applicable
Department for Business Innovation and Skills,Intellectual Property Office,19/08/2015,Travel & Subsistence,Copyright and Enforcement Directorate,HRG UK,634739429,54.35,Not Applicable
Department for Business Innovation and Skills,Intellectual Property Office,20/08/2015,Travel & Subsistence,Copyright and Enforcement Directorate,HRG UK,634739430,102.38,Not Applicable
Department for Business Innovation and Skills,Intellectual Property Office,20/08/2015,Travel & Subsistence,Copyright and Enforcement Directorate,HRG UK,634739477,57.06,Not Applicable
Department for Business Innovation and Skills,Intellectual Property Office,20/08/2015,Travel & Subsistence,Copyright and Enforcement Directorate,HRG UK,634739477,0.36,Not Applicable
Department for Business Innovation and Skills,Intellectual Property Office,19/08/2015,Travel & Subsistence,People Places & Services Directorate,HRG UK,634739477,-53.83,Not Applicable
Department for Business Innovation and Skills,Intellectual Property Office,20/08/2015,Travel & Subsistence,Copyright and Enforcement Directorate,HRG UK,634739478,106.01,Not Applicable
Department for Business Innovation and Skills,Intellectual Property Office,20/08/2015,Travel & Subsistence,Copyright and Enforcement Directorate,HRG UK,634739478,0.66,Not Applicable
Department for Business Innovation and Skills,Intellectual Property Office,19/08/2015,Travel & Subsistence,People Places & Services Directorate,HRG UK,634739478,-21.03,Not Applicable
Department for Business Innovation and Skills,Intellectual Property Office,20/08/2015,Travel & Subsistence,Copyright and Enforcement Directorate,HRG UK,634739542,54.35,Not Applicable
Department for Business Innovation and Skills,Intellectual Property Office,20/08/2015,Travel & Subsistence,Copyright and Enforcement Directorate,HRG UK,634739544,-124.41,Not Applicable
Department for Business Innovation and Skills,Intellectual Property Office,20/08/2015,Travel & Subsistence,Copyright and Enforcement Directorate,HRG UK,634739605,57.06,Not Applicable
Department for Business Innovation and Skills,Intellectual Property Office,20/08/2015,Travel & Subsistence,Copyright and Enforcement Directorate,HRG UK,634739605,0.36,Not Applicable
Department for Business Innovation and Skills,Intellectual Property Office,19/08/2015,Travel & Subsistence,People Places & Services Directorate,HRG UK,634739605,-109.6,Not Applicable
Department for Business Innovation and Skills,Intellectual Property Office,19/08/2015,Travel & Subsistence,People Places & Services Directorate,HRG UK,634739605,-0.66,Not Applicable
Department for Business Innovation and Skills,Intellectual Property Office,20/08/2015,Travel & Subsistence,Copyright and Enforcement Directorate,HRG UK,634739606,106.01,Not Applicable
Department for Business Innovation and Skills,Intellectual Property Office,20/08/2015,Travel & Subsistence,Copyright and Enforcement Directorate,HRG UK,634739606,0.66,Not Applicable
Department for Business Innovation and Skills,Intellectual Property Office,19/08/2015,Travel & Subsistence,People Places & Services Directorate,HRG UK,634739606,-0.66,Not Applicable
Department for Business Innovation and Skills,Intellectual Property Office,19/08/2015,Travel & Subsistence,People Places & Services Directorate,HRG UK,634739606,-109.6,Not Applicable
Department for Business Innovation and Skills,Intellectual Property Office,19/08/2015,Travel & Subsistence,Copyright and Enforcement Directorate,HRG UK,634739660,96.58,Not Applicable
Department for Business Innovation and Skills,Intellectual Property Office,20/08/2015,Travel & Subsistence,Copyright and Enforcement Directorate,HRG UK,634739661,17.36,Not Applicable
Department for Business Innovation and Skills,Intellectual Property Office,20/08/2015,Travel & Subsistence,Copyright and Enforcement Directorate,HRG UK,634739728,54.35,Not Applicable
Department for Business Innovation and Skills,Intellectual Property Office,20/08/2015,Travel & Subsistence,Copyright and Enforcement Directorate,HRG UK,634739729,197.6,Not Applicable
Department for Business Innovation and Skills,Intellectual Property Office,20/08/2015,Travel & Subsistence,International Policy Directorate,HRG UK,634741177,0.6,Not Applicable
Department for Business Innovation and Skills,Intellectual Property Office,20/08/2015,Travel & Subsistence,International Policy Directorate,HRG UK,634741177,101.18,Not Applicable
Department for Business Innovation and Skills,Intellectual Property Office,19/08/2015,Travel & Subsistence,Patents Directorate,HRG UK,634741177,-0.6,Not Applicable
Department for Business Innovation and Skills,Intellectual Property Office,19/08/2015,Travel & Subsistence,Patents Directorate,HRG UK,634741177,-104.16,Not Applicable
Department for Business Innovation and Skills,Intellectual Property Office,20/08/2015,Travel & Subsistence,Copyright and Enforcement Directorate,HRG UK,634742797,0.66,Not Applicable
Department for Business Innovation and Skills,Intellectual Property Office,20/08/2015,Travel & Subsistence,Copyright and Enforcement Directorate,HRG UK,634742797,111.58,Not Applicable
Department for Business Innovation and Skills,Intellectual Property Office,19/08/2015,Travel & Subsistence,Copyright and Enforcement Directorate,HRG UK,634742797,-3.07,Not Applicable
Department for Business Innovation and Skills,Intellectual Property Office,20/08/2015,Travel & Subsistence,Copyright and Enforcement Directorate,HRG UK,634742798,0.3,Not Applicable
Department for Business Innovation and Skills,Intellectual Property Office,20/08/2015,Travel & Subsistence,Copyright and Enforcement Directorate,HRG UK,634742798,54.52,Not Applicable
Department for Business Innovation and Skills,Intellectual Property Office,19/08/2015,Travel & Subsistence,Copyright and Enforcement Directorate,HRG UK,634742798,-79.87,Not Applicable
Department for Business Innovation and Skills,Intellectual Property Office,19/08/2015,Travel & Subsistence,Copyright and Enforcement Directorate,HRG UK,634742798,-0.48,Not Applicable
Department for Business Innovation and Skills,Intellectual Property Office,20/08/2015,Travel & Subsistence,Copyright and Enforcement Directorate,HRG UK,634742799,35.16,Not Applicable
Department for Business Innovation and Skills,Intellectual Property Office,20/08/2015,Travel & Subsistence,Copyright and Enforcement Directorate,HRG UK,634742799,0.24,Not Applicable
Department for Business Innovation and Skills,Intellectual Property Office,19/08/2015,Travel & Subsistence,Copyright and Enforcement Directorate,HRG UK,634742799,38.92,Not Applicable
Department for Business Innovation and Skills,Intellectual Property Office,19/08/2015,Travel & Subsistence,Copyright and Enforcement Directorate,HRG UK,634742799,0.24,Not Applicable
Department for Business Innovation and Skills,Intellectual Property Office,19/08/2015,Miscellaneous Expenses General,Innovation Directorate,HRG UK,634743001,-43.46,Not Applicable
Department for Business Innovation and Skills,Intellectual Property Office,20/08/2015,Travel & Subsistence,IT Directorate,HRG UK,634743001,45.86,Not Applicable
Department for Business Innovation and Skills,Intellectual Property Office,19/08/2015,Miscellaneous Expenses General,Innovation Directorate,HRG UK,634743002,-3.07,Not Applicable
Department for Business Innovation and Skills,Intellectual Property Office,20/08/2015,Travel & Subsistence,IT Directorate,HRG UK,634743002,106.67,Not Applicable
Department for Business Innovation and Skills,Intellectual Property Office,20/08/2015,Travel & Subsistence,Copyright and Enforcement Directorate,HRG UK,634743128,180.24,Not Applicable
Department for Business Innovation and Skills,Intellectual Property Office,20/08/2015,Travel & Subsistence,Copyright and Enforcement Directorate,HRG UK,634743206,88.77,Not Applicable
Department for Business Innovation and Skills,Intellectual Property Office,20/08/2015,Travel & Subsistence,Copyright and Enforcement Directorate,HRG UK,634743206,0.54,Not Applicable
Department for Business Innovation and Skills,Intellectual Property Office,19/08/2015,Travel & Subsistence,People Places & Services Directorate,HRG UK,634743206,-109.6,Not Applicable
Department for Business Innovation and Skills,Intellectual Property Office,19/08/2015,Travel & Subsistence,People Places & Services Directorate,HRG UK,634743206,-0.66,Not Applicable
Department for Business Innovation and Skills,Intellectual Property Office,20/08/2015,Travel & Subsistence,Copyright and Enforcement Directorate,HRG UK,634743207,180.24,Not Applicable
Department for Business Innovation and Skills,Intellectual Property Office,20/08/2015,Travel & Subsistence,Copyright and Enforcement Directorate,HRG UK,634743208,88.77,Not Applicable
Department for Business Innovation and Skills,Intellectual Property Office,20/08/2015,Travel & Subsistence,Copyright and Enforcement Directorate,HRG UK,634743208,0.54,Not Applicable
Department for Business Innovation and Skills,Intellectual Property Office,19/08/2015,Travel & Subsistence,People Places & Services Directorate,HRG UK,634743208,-53.53,Not Applicable
Department for Business Innovation and Skills,Intellectual Property Office,19/08/2015,Travel & Subsistence,People Places & Services Directorate,HRG UK,634743208,-0.3,Not Applicable
Department for Business Innovation and Skills,Intellectual Property Office,19/08/2015,Travel & Subsistence,Copyright and Enforcement Directorate,HRG UK,634743281,128.47,Not Applicable
Department for Business Innovation and Skills,Intellectual Property Office,19/08/2015,Travel & Subsistence,Copyright and Enforcement Directorate,HRG UK,634743282,128.47,Not Applicable
Department for Business Innovation and Skills,Intellectual Property Office,20/08/2015,Travel & Subsistence,Copyright and Enforcement Directorate,HRG UK,634743458,0.54,Not Applicable
Department for Business Innovation and Skills,Intellectual Property Office,20/08/2015,Travel & Subsistence,Copyright and Enforcement Directorate,HRG UK,634743458,88.77,Not Applicable
Department for Business Innovation and Skills,Intellectual Property Office,19/08/2015,Travel & Subsistence,Copyright and Enforcement Directorate,HRG UK,634743458,-0.66,Not Applicable
Department for Business Innovation and Skills,Intellectual Property Office,19/08/2015,Travel & Subsistence,Copyright and Enforcement Directorate,HRG UK,634743458,-111.58,Not Applicable
Department for Business Innovation and Skills,Intellectual Property Office,20/08/2015,Travel & Subsistence,Copyright and Enforcement Directorate,HRG UK,634743459,134.45,Not Applicable
Department for Business Innovation and Skills,Intellectual Property Office,20/08/2015,Travel & Subsistence,Innovation Directorate,HRG UK,634744537,51.35,Not Applicable
Department for Business Innovation and Skills,Intellectual Property Office,20/08/2015,Travel & Subsistence,Copyright and Enforcement Directorate,HRG UK,634747857,3.07,Not Applicable
Department for Business Innovation and Skills,Intellectual Property Office,19/08/2015,Travel & Subsistence,Copyright and Enforcement Directorate,HRG UK,634747857,-26.32,Not Applicable
Department for Business Innovation and Skills,Intellectual Property Office,20/08/2015,Travel & Subsistence,Copyright and Enforcement Directorate,HRG UK,634747858,4.93,Not Applicable
Department for Business Innovation and Skills,Intellectual Property Office,19/08/2015,Travel & Subsistence,Copyright and Enforcement Directorate,HRG UK,634747858,-3.07,Not Applicable
Department for Business Innovation and Skills,Intellectual Property Office,20/08/2015,Travel & Subsistence,Copyright and Enforcement Directorate,HRG UK,634748653,3.07,Not Applicable
Department for Business Innovation and Skills,Intellectual Property Office,19/08/2015,Travel & Subsistence,Copyright and Enforcement Directorate,HRG UK,634748653,-54.82,Not Applicable
Department for Business Innovation and Skills,Intellectual Property Office,19/08/2015,Travel & Subsistence,IT Directorate,HRG UK,634748732,-3.1,Not Applicable
Department for Business Innovation and Skills,Intellectual Property Office,19/08/2015,Travel & Subsistence,IT Directorate,HRG UK,634748984,-3.1,Not Applicable
Department for Business Innovation and Skills,Intellectual Property Office,19/08/2015,Travel & Subsistence,Copyright and Enforcement Directorate,HRG UK,634749788,-4.93,Not Applicable
Department for Business Innovation and Skills,Intellectual Property Office,20/08/2015,Travel & Subsistence,International Policy Directorate,HRG UK,634749788,216.92,Not Applicable
Department for Business Innovation and Skills,Intellectual Property Office,19/08/2015,Travel & Subsistence,Copyright and Enforcement Directorate,HRG UK,634749789,-2771.96,Not Applicable
Department for Business Innovation and Skills,Intellectual Property Office,20/08/2015,Travel & Subsistence,International Policy Directorate,HRG UK,634749789,1.32,Not Applicable
Department for Business Innovation and Skills,Intellectual Property Office,20/08/2015,Travel & Subsistence,International Policy Directorate,HRG UK,634749789,215.6,Not Applicable
Department for Business Innovation and Skills,Intellectual Property Office,19/08/2015,Travel & Subsistence,Copyright and Enforcement Directorate,HRG UK,634750437,-3.07,Not Applicable
Department for Business Innovation and Skills,Intellectual Property Office,20/08/2015,Travel & Subsistence,International Policy Directorate,HRG UK,634750437,3.07,Not Applicable
Department for Business Innovation and Skills,Intellectual Property Office,19/08/2015,Travel & Subsistence,Patents Directorate,HRG UK,634751314,-3.84,Not Applicable
Department for Business Innovation and Skills,Intellectual Property Office,19/08/2015,Travel & Subsistence,Patents Directorate,HRG UK,634751314,-9.17,Not Applicable
Department for Business Innovation and Skills,Intellectual Property Office,20/08/2015,Travel & Subsistence,Trade Marks Directorate,HRG UK,634751314,12.69,Not Applicable
Department for Business Innovation and Skills,Intellectual Property Office,20/08/2015,Travel & Subsistence,Trade Marks Directorate,HRG UK,634751314,0.06,Not Applicable
Department for Business Innovation and Skills,Intellectual Property Office,20/08/2015,Travel & Subsistence,Innovation Directorate,HRG UK,634751872,223.82,Not Applicable
Department for Business Innovation and Skills,Intellectual Property Office,19/08/2015,Travel & Subsistence,People Places & Services Directorate,HRG UK,634752352,-215.6,Not Applicable
Department for Business Innovation and Skills,Intellectual Property Office,19/08/2015,Travel & Subsistence,People Places & Services Directorate,HRG UK,634752352,-1.32,Not Applicable
Department for Business Innovation and Skills,Intellectual Property Office,20/08/2015,Travel & Subsistence,People Places & Services Directorate,HRG UK,634752352,109.6,Not Applicable
Department for Business Innovation and Skills,Intellectual Property Office,20/08/2015,Travel & Subsistence,People Places & Services Directorate,HRG UK,634752352,0.66,Not Applicable
Department for Business Innovation and Skills,Intellectual Property Office,19/08/2015,Travel & Subsistence,People Places & Services Directorate,HRG UK,634752353,194.29,Not Applicable
Department for Business Innovation and Skills,Intellectual Property Office,19/08/2015,Travel & Subsistence,People Places & Services Directorate,HRG UK,634752353,1.14,Not Applicable
Department for Business Innovation and Skills,Intellectual Property Office,20/08/2015,Travel & Subsistence,People Places & Services Directorate,HRG UK,634752353,53.53,Not Applicable
Department for Business Innovation and Skills,Intellectual Property Office,20/08/2015,Travel & Subsistence,People Places & Services Directorate,HRG UK,634752353,0.3,Not Applicable
Department for Business Innovation and Skills,Intellectual Property Office,20/08/2015,Travel & Subsistence,People Places & Services Directorate,HRG UK,634752621,1.32,Not Applicable
Department for Business Innovation and Skills,Intellectual Property Office,20/08/2015,Travel & Subsistence,People Places & Services Directorate,HRG UK,634752621,215.6,Not Applicable
Department for Business Innovation and Skills,Intellectual Property Office,19/08/2015,Travel & Subsistence,International Policy Directorate,HRG UK,634752621,-101.18,Not Applicable
Department for Business Innovation and Skills,Intellectual Property Office,19/08/2015,Travel & Subsistence,International Policy Directorate,HRG UK,634752621,-0.6,Not Applicable
Department for Business Innovation and Skills,Intellectual Property Office,19/08/2015,Travel & Subsistence,Copyright and Enforcement Directorate,HRG UK,634754362,-30.22,Not Applicable
Department for Business Innovation and Skills,Intellectual Property Office,19/08/2015,Travel & Subsistence,Copyright and Enforcement Directorate,HRG UK,634754362,-0.18,Not Applicable
Department for Business Innovation and Skills,Intellectual Property Office,20/08/2015,Travel & Subsistence,Innovation Directorate,HRG UK,634754362,0.3,Not Applicable
Department for Business Innovation and Skills,Intellectual Property Office,20/08/2015,Travel & Subsistence,Innovation Directorate,HRG UK,634754362,50.24,Not Applicable
Department for Business Innovation and Skills,Intellectual Property Office,19/08/2015,Travel & Subsistence,Copyright and Enforcement Directorate,HRG UK,634755439,-63.93,Not Applicable
Department for Business Innovation and Skills,Intellectual Property Office,19/08/2015,Travel & Subsistence,Copyright and Enforcement Directorate,HRG UK,634755439,-0.36,Not Applicable
Department for Business Innovation and Skills,Intellectual Property Office,20/08/2015,Travel & Subsistence,Patents Directorate,HRG UK,634755439,0.42,Not Applicable
Department for Business Innovation and Skills,Intellectual Property Office,20/08/2015,Travel & Subsistence,Patents Directorate,HRG UK,634755439,71.45,Not Applicable
Department for Business Innovation and Skills,Intellectual Property Office,20/08/2015,Travel & Subsistence,International Policy Directorate,HRG UK,634755844,0.54,Not Applicable
Department for Business Innovation and Skills,Intellectual Property Office,20/08/2015,Travel & Subsistence,International Policy Directorate,HRG UK,634755844,88.77,Not Applicable
Department for Business Innovation and Skills,Intellectual Property Office,19/08/2015,Travel & Subsistence,Patents Directorate,HRG UK,634755844,-0.66,Not Applicable
Department for Business Innovation and Skills,Intellectual Property Office,19/08/2015,Travel & Subsistence,Patents Directorate,HRG UK,634755844,-109.6,Not Applicable
Department for Business Innovation and Skills,Intellectual Property Office,20/08/2015,Travel & Subsistence,Innovation Directorate,HRG UK,634758112,0.12,Not Applicable
Department for Business Innovation and Skills,Intellectual Property Office,20/08/2015,Travel & Subsistence,Innovation Directorate,HRG UK,634758112,21.21,Not Applicable
Department for Business Innovation and Skills,Intellectual Property Office,19/08/2015,Travel & Subsistence,People Places & Services Directorate,HRG UK,634758112,-0.36,Not Applicable
Department for Business Innovation and Skills,Intellectual Property Office,19/08/2015,Travel & Subsistence,People Places & Services Directorate,HRG UK,634758112,-57.06,Not Applicable
Department for Business Innovation and Skills,Intellectual Property Office,20/08/2015,Travel & Subsistence,Innovation Directorate,HRG UK,634758114,0.12,Not Applicable
Department for Business Innovation and Skills,Intellectual Property Office,20/08/2015,Travel & Subsistence,Innovation Directorate,HRG UK,634758114,23.9,Not Applicable
Department for Business Innovation and Skills,Intellectual Property Office,19/08/2015,Travel & Subsistence,People Places & Services Directorate,HRG UK,634758114,-3.07,Not Applicable
Department for Business Innovation and Skills,Intellectual Property Office,20/08/2015,Travel & Subsistence,IT Directorate,HRG UK,634758771,-195.8,Not Applicable
Department for Business Innovation and Skills,Intellectual Property Office,20/08/2015,Travel & Subsistence,Copyright and Enforcement Directorate,HRG UK,634759012,0.48,Not Applicable
Department for Business Innovation and Skills,Intellectual Property Office,20/08/2015,Travel & Subsistence,Copyright and Enforcement Directorate,HRG UK,634759012,79.87,Not Applicable
Department for Business Innovation and Skills,Intellectual Property Office,19/08/2015,Travel & Subsistence,People Places & Services Directorate,HRG UK,634759012,-109.6,Not Applicable
Department for Business Innovation and Skills,Intellectual Property Office,19/08/2015,Travel & Subsistence,People Places & Services Directorate,HRG UK,634759012,-0.66,Not Applicable
Department for Business Innovation and Skills,Intellectual Property Office,20/08/2015,Travel & Subsistence,Copyright and Enforcement Directorate,HRG UK,634759013,42.62,Not Applicable
Department for Business Innovation and Skills,Intellectual Property Office,20/08/2015,Travel & Subsistence,Copyright and Enforcement Directorate,HRG UK,634759013,0.24,Not Applicable
Department for Business Innovation and Skills,Intellectual Property Office,19/08/2015,Travel & Subsistence,People Places & Services Directorate,HRG UK,634759013,-53.53,Not Applicable
Department for Business Innovation and Skills,Intellectual Property Office,19/08/2015,Travel & Subsistence,People Places & Services Directorate,HRG UK,634759013,-0.3,Not Applicable
Department for Business Innovation and Skills,Intellectual Property Office,20/08/2015,Travel & Subsistence,People Places & Services Directorate,HRG UK,634762867,215.6,Not Applicable
Department for Business Innovation and Skills,Intellectual Property Office,20/08/2015,Travel & Subsistence,People Places & Services Directorate,HRG UK,634762867,1.32,Not Applicable
Department for Business Innovation and Skills,Intellectual Property Office,19/08/2015,Travel & Subsistence,International Policy Directorate,HRG UK,634762867,-57.47,Not Applicable
Department for Business Innovation and Skills,Intellectual Property Office,19/08/2015,Travel & Subsistence,International Policy Directorate,HRG UK,634762867,-0.36,Not Applicable
Department for Business Innovation and Skills,Intellectual Property Office,19/08/2015,Travel & Subsistence,Innovation Directorate,HRG UK,634763677,-17.44,Not Applicable
Department for Business Innovation and Skills,Intellectual Property Office,20/08/2015,Travel & Subsistence,People Places & Services Directorate,HRG UK,634765468,57.06,Not Applicable
Department for Business Innovation and Skills,Intellectual Property Office,20/08/2015,Travel & Subsistence,People Places & Services Directorate,HRG UK,634765468,0.36,Not Applicable
Department for Business Innovation and Skills,Intellectual Property Office,19/08/2015,Travel & Subsistence,International Policy Directorate,HRG UK,634765468,-88.77,Not Applicable
Department for Business Innovation and Skills,Intellectual Property Office,19/08/2015,Travel & Subsistence,International Policy Directorate,HRG UK,634765468,-0.54,Not Applicable
Department for Business Innovation and Skills,Intellectual Property Office,20/08/2015,Travel & Subsistence,People Places & Services Directorate,HRG UK,634765469,106.01,Not Applicable
Department for Business Innovation and Skills,Intellectual Property Office,20/08/2015,Travel & Subsistence,People Places & Services Directorate,HRG UK,634765469,0.66,Not Applicable
Department for Business Innovation and Skills,Intellectual Property Office,19/08/2015,Travel & Subsistence,International Policy Directorate,HRG UK,634765469,-3.07,Not Applicable
Department for Business Innovation and Skills,Intellectual Property Office,20/08/2015,Travel & Subsistence,People Places & Services Directorate,HRG UK,634765507,109.6,Not Applicable
Department for Business Innovation and Skills,Intellectual Property Office,20/08/2015,Travel & Subsistence,People Places & Services Directorate,HRG UK,634765507,0.66,Not Applicable
Department for Business Innovation and Skills,Intellectual Property Office,19/08/2015,Travel & Subsistence,International Policy Directorate,HRG UK,634765507,-88.77,Not Applicable
Department for Business Innovation and Skills,Intellectual Property Office,19/08/2015,Travel & Subsistence,International Policy Directorate,HRG UK,634765507,-0.54,Not Applicable
Department for Business Innovation and Skills,Intellectual Property Office,19/08/2015,Travel & Subsistence,Copyright and Enforcement Directorate,HRG UK,634765605,-312.7,Not Applicable
Department for Business Innovation and Skills,Intellectual Property Office,20/08/2015,Travel & Subsistence,International Policy Directorate,HRG UK,634765605,0.3,Not Applicable
Department for Business Innovation and Skills,Intellectual Property Office,20/08/2015,Travel & Subsistence,International Policy Directorate,HRG UK,634765605,54.12,Not Applicable
Department for Business Innovation and Skills,Intellectual Property Office,19/08/2015,Travel & Subsistence,Copyright and Enforcement Directorate,HRG UK,634765606,-16.68,Not Applicable
Department for Business Innovation and Skills,Intellectual Property Office,19/08/2015,Travel & Subsistence,Copyright and Enforcement Directorate,HRG UK,634765606,-5.08,Not Applicable
Department for Business Innovation and Skills,Intellectual Property Office,20/08/2015,Travel & Subsistence,International Policy Directorate,HRG UK,634765606,0.18,Not Applicable
Department for Business Innovation and Skills,Intellectual Property Office,20/08/2015,Travel & Subsistence,International Policy Directorate,HRG UK,634765606,33.71,Not Applicable
Department for Business Innovation and Skills,Intellectual Property Office,20/08/2015,Travel & Subsistence,International Policy Directorate,HRG UK,634766526,0.54,Not Applicable
Department for Business Innovation and Skills,Intellectual Property Office,20/08/2015,Travel & Subsistence,International Policy Directorate,HRG UK,634766526,88.77,Not Applicable
Department for Business Innovation and Skills,Intellectual Property Office,19/08/2015,Travel & Subsistence,Patents Directorate,HRG UK,634766526,-0.3,Not Applicable
Department for Business Innovation and Skills,Intellectual Property Office,19/08/2015,Travel & Subsistence,Patents Directorate,HRG UK,634766526,-53.53,Not Applicable
Department for Business Innovation and Skills,Intellectual Property Office,19/08/2015,Travel & Subsistence,Patents Directorate,HRG UK,634767120,-531.08,Not Applicable
Department for Business Innovation and Skills,Intellectual Property Office,20/08/2015,Travel & Subsistence,Trade Marks Directorate,HRG UK,634767120,49.45,Not Applicable
Department for Business Innovation and Skills,Intellectual Property Office,19/08/2015,Travel & Subsistence,Patents Directorate,HRG UK,634767121,-42.62,Not Applicable
Department for Business Innovation and Skills,Intellectual Property Office,19/08/2015,Travel & Subsistence,Patents Directorate,HRG UK,634767121,-0.24,Not Applicable
Department for Business Innovation and Skills,Intellectual Property Office,20/08/2015,Travel & Subsistence,Trade Marks Directorate,HRG UK,634767121,0.6,Not Applicable
Department for Business Innovation and Skills,Intellectual Property Office,20/08/2015,Travel & Subsistence,Trade Marks Directorate,HRG UK,634767121,100.58,Not Applicable
Department for Business Innovation and Skills,Intellectual Property Office,20/08/2015,Travel & Subsistence,International Policy Directorate,HRG UK,634768639,0.54,Not Applicable
Department for Business Innovation and Skills,Intellectual Property Office,20/08/2015,Travel & Subsistence,International Policy Directorate,HRG UK,634768639,94.75,Not Applicable
Department for Business Innovation and Skills,Intellectual Property Office,19/08/2015,Travel & Subsistence,Patents Directorate,HRG UK,634768639,-94.75,Not Applicable
Department for Business Innovation and Skills,Intellectual Property Office,19/08/2015,Travel & Subsistence,Patents Directorate,HRG UK,634768639,-0.54,Not Applicable
Department for Business Innovation and Skills,Intellectual Property Office,20/08/2015,Travel & Subsistence,IT Directorate,HRG UK,634768914,-28.46,Not Applicable
Department for Business Innovation and Skills,Intellectual Property Office,20/08/2015,Travel & Subsistence,Patents Directorate,HRG UK,634769306,94.75,Not Applicable
Department for Business Innovation and Skills,Intellectual Property Office,20/08/2015,Travel & Subsistence,Patents Directorate,HRG UK,634769306,0.54,Not Applicable
Department for Business Innovation and Skills,Intellectual Property Office,19/08/2015,Travel & Subsistence,Trade Marks Directorate,HRG UK,634769306,-0.6,Not Applicable
Department for Business Innovation and Skills,Intellectual Property Office,19/08/2015,Travel & Subsistence,Trade Marks Directorate,HRG UK,634769306,-99.79,Not Applicable
Department for Business Innovation and Skills,Intellectual Property Office,20/08/2015,Travel & Subsistence,Copyright and Enforcement Directorate,HRG UK,634769581,3.07,Not Applicable
Department for Business Innovation and Skills,Intellectual Property Office,19/08/2015,Travel & Subsistence,Copyright and Enforcement Directorate,HRG UK,634769581,-0.3,Not Applicable
Department for Business Innovation and Skills,Intellectual Property Office,19/08/2015,Travel & Subsistence,Copyright and Enforcement Directorate,HRG UK,634769581,-54.52,Not Applicable
Department for Business Innovation and Skills,Intellectual Property Office,20/08/2015,Travel & Subsistence,People Places & Services Directorate,HRG UK,634770221,3.07,Not Applicable
Department for Business Innovation and Skills,Intellectual Property Office,19/08/2015,Travel & Subsistence,International Policy Directorate,HRG UK,634770221,-89.31,Not Applicable
Department for Business Innovation and Skills,Intellectual Property Office,19/08/2015,Travel & Subsistence,Innovation Directorate,HRG UK,634770379,-50.76,Not Applicable
Department for Business Innovation and Skills,Intellectual Property Office,19/08/2015,Travel & Subsistence,Copyright and Enforcement Directorate,HRG UK,634770615,-9.18,Not Applicable
Department for Business Innovation and Skills,Intellectual Property Office,20/08/2015,Travel & Subsistence,Patents Directorate,HRG UK,634770615,3.07,Not Applicable
Department for Business Innovation and Skills,Intellectual Property Office,20/08/2015,Travel & Subsistence,International Policy Directorate,HRG UK,634770662,3.07,Not Applicable
Department for Business Innovation and Skills,Intellectual Property Office,19/08/2015,Travel & Subsistence,Patents Directorate,HRG UK,634770662,-0.48,Not Applicable
Department for Business Innovation and Skills,Intellectual Property Office,19/08/2015,Travel & Subsistence,Patents Directorate,HRG UK,634770662,-79.37,Not Applicable
Department for Business Innovation and Skills,Intellectual Property Office,19/08/2015,Travel & Subsistence,People Places & Services Directorate,HRG UK,634770714,-1.32,Not Applicable
Department for Business Innovation and Skills,Intellectual Property Office,19/08/2015,Travel & Subsistence,People Places & Services Directorate,HRG UK,634770714,-215.6,Not Applicable
Department for Business Innovation and Skills,Intellectual Property Office,20/08/2015,Travel & Subsistence,People Places & Services Directorate,HRG UK,634770714,215.6,Not Applicable
Department for Business Innovation and Skills,Intellectual Property Office,20/08/2015,Travel & Subsistence,People Places & Services Directorate,HRG UK,634770714,1.32,Not Applicable
Department for Business Innovation and Skills,Intellectual Property Office,20/08/2015,Travel & Subsistence,Copyright and Enforcement Directorate,HRG UK,634771245,3.07,Not Applicable
Department for Business Innovation and Skills,Intellectual Property Office,19/08/2015,Travel & Subsistence,Copyright and Enforcement Directorate,HRG UK,634771245,-103.07,Not Applicable
Department for Business Innovation and Skills,Intellectual Property Office,19/08/2015,Travel & Subsistence,Copyright and Enforcement Directorate,HRG UK,634771245,-0.6,Not Applicable
Department for Business Innovation and Skills,Intellectual Property Office,20/08/2015,Travel & Subsistence,Copyright and Enforcement Directorate,HRG UK,634771254,3.07,Not Applicable
Department for Business Innovation and Skills,Intellectual Property Office,19/08/2015,Travel & Subsistence,People Places & Services Directorate,HRG UK,634771254,-216.92,Not Applicable
Department for Business Innovation and Skills,Intellectual Property Office,20/08/2015,Travel & Subsistence,Copyright and Enforcement Directorate,HRG UK,634771264,3.07,Not Applicable
Department for Business Innovation and Skills,Intellectual Property Office,19/08/2015,Travel & Subsistence,People Places & Services Directorate,HRG UK,634771264,-53.53,Not Applicable
Department for Business Innovation and Skills,Intellectual Property Office,19/08/2015,Travel & Subsistence,People Places & Services Directorate,HRG UK,634771264,-0.3,Not Applicable
Department for Business Innovation and Skills,Intellectual Property Office,20/08/2015,Travel & Subsistence,Copyright and Enforcement Directorate,HRG UK,634771270,3.07,Not Applicable
Department for Business Innovation and Skills,Intellectual Property Office,19/08/2015,Travel & Subsistence,Copyright and Enforcement Directorate,HRG UK,634771270,-3.07,Not Applicable
Department for Business Innovation and Skills,Intellectual Property Office,20/08/2015,Travel & Subsistence,Copyright and Enforcement Directorate,HRG UK,634771273,3.07,Not Applicable
Department for Business Innovation and Skills,Intellectual Property Office,19/08/2015,Travel & Subsistence,People Places & Services Directorate,HRG UK,634771273,-1.32,Not Applicable
Department for Business Innovation and Skills,Intellectual Property Office,19/08/2015,Travel & Subsistence,People Places & Services Directorate,HRG UK,634771273,-215.6,Not Applicable
Department for Business Innovation and Skills,Intellectual Property Office,20/08/2015,Travel & Subsistence,Copyright and Enforcement Directorate,HRG UK,634771282,3.07,Not Applicable
Department for Business Innovation and Skills,Intellectual Property Office,19/08/2015,Travel & Subsistence,Copyright and Enforcement Directorate,HRG UK,634771282,-49.13,Not Applicable
Department for Business Innovation and Skills,Intellectual Property Office,20/08/2015,Travel & Subsistence,Copyright and Enforcement Directorate,HRG UK,634771286,3.07,Not Applicable
Department for Business Innovation and Skills,Intellectual Property Office,19/08/2015,Travel & Subsistence,Copyright and Enforcement Directorate,HRG UK,634771286,-0.3,Not Applicable
Department for Business Innovation and Skills,Intellectual Property Office,19/08/2015,Travel & Subsistence,Copyright and Enforcement Directorate,HRG UK,634771286,-45.26,Not Applicable
Department for Business Innovation and Skills,Intellectual Property Office,20/08/2015,Travel & Subsistence,Copyright and Enforcement Directorate,HRG UK,634771288,3.07,Not Applicable
Department for Business Innovation and Skills,Intellectual Property Office,19/08/2015,Travel & Subsistence,Copyright and Enforcement Directorate,HRG UK,634771288,-112.24,Not Applicable
Department for Business Innovation and Skills,Intellectual Property Office,20/08/2015,Travel & Subsistence,International Policy Directorate,HRG UK,634771541,3.07,Not Applicable
Department for Business Innovation and Skills,Intellectual Property Office,19/08/2015,Travel & Subsistence,Patents Directorate,HRG UK,634771541,-79.37,Not Applicable
Department for Business Innovation and Skills,Intellectual Property Office,19/08/2015,Travel & Subsistence,Patents Directorate,HRG UK,634771541,-0.48,Not Applicable
Department for Business Innovation and Skills,Intellectual Property Office,20/08/2015,Travel & Subsistence,International Policy Directorate,HRG UK,634771978,88.77,Not Applicable
Department for Business Innovation and Skills,Intellectual Property Office,20/08/2015,Travel & Subsistence,International Policy Directorate,HRG UK,634771978,0.54,Not Applicable
Department for Business Innovation and Skills,Intellectual Property Office,19/08/2015,Travel & Subsistence,Patents Directorate,HRG UK,634771978,-53.53,Not Applicable
Department for Business Innovation and Skills,Intellectual Property Office,19/08/2015,Travel & Subsistence,Patents Directorate,HRG UK,634771978,-0.3,Not Applicable
Department for Business Innovation and Skills,Intellectual Property Office,19/08/2015,Travel & Subsistence,Innovation Directorate,HRG UK,634773487,-159.81,Not Applicable
Department for Business Innovation and Skills,Intellectual Property Office,19/08/2015,Travel & Subsistence,Innovation Directorate,HRG UK,634773488,-3.01,Not Applicable
Department for Business Innovation and Skills,Intellectual Property Office,20/08/2015,Travel & Subsistence,International Policy Directorate,HRG UK,634773757,5.09,Not Applicable
Department for Business Innovation and Skills,Intellectual Property Office,20/08/2015,Travel & Subsistence,International Policy Directorate,HRG UK,634773757,2934.06,Not Applicable
Department for Business Innovation and Skills,Intellectual Property Office,20/08/2015,Travel & Subsistence,International Policy Directorate,HRG UK,634773757,17.64,Not Applicable
Department for Business Innovation and Skills,Intellectual Property Office,19/08/2015,Travel & Subsistence,Patents Directorate,HRG UK,634773757,-114.87,Not Applicable
Department for Business Innovation and Skills,Intellectual Property Office,19/08/2015,Travel & Subsistence,Patents Directorate,HRG UK,634773757,-0.66,Not Applicable
Department for Business Innovation and Skills,Intellectual Property Office,19/08/2015,Travel & Subsistence,Patents Directorate,HRG UK,634773757,-109.6,Not Applicable
Department for Business Innovation and Skills,Intellectual Property Office,19/08/2015,Travel & Subsistence,Patents Directorate,HRG UK,634773757,-0.66,Not Applicable
Department for Business Innovation and Skills,Intellectual Property Office,20/08/2015,Travel & Subsistence,People Places & Services Directorate,HRG UK,634773881,17.64,Not Applicable
Department for Business Innovation and Skills,Intellectual Property Office,20/08/2015,Travel & Subsistence,People Places & Services Directorate,HRG UK,634773881,2939.15,Not Applicable
Department for Business Innovation and Skills,Intellectual Property Office,19/08/2015,Travel & Subsistence,IT Directorate,HRG UK,634773881,-0.18,Not Applicable
Department for Business Innovation and Skills,Intellectual Property Office,19/08/2015,Travel & Subsistence,IT Directorate,HRG UK,634773881,-35.84,Not Applicable
Department for Business Innovation and Skills,Intellectual Property Office,20/08/2015,Travel & Subsistence,Innovation Directorate,HRG UK,634773953,107.19,Not Applicable
Department for Business Innovation and Skills,Intellectual Property Office,19/08/2015,Travel & Subsistence,Innovation Directorate,HRG UK,634773954,-174.06,Not Applicable
Department for Business Innovation and Skills,Intellectual Property Office,19/08/2015,Travel & Subsistence,Innovation Directorate,HRG UK,634774027,107.19,Not Applicable
Department for Business Innovation and Skills,Intellectual Property Office,19/08/2015,Travel & Subsistence,Innovation Directorate,HRG UK,634774028,-57.43,Not Applicable
Department for Business Innovation and Skills,Intellectual Property Office,19/08/2015,Travel & Subsistence,People Places & Services Directorate,HRG UK,634774170,-215.6,Not Applicable
Department for Business Innovation and Skills,Intellectual Property Office,19/08/2015,Travel & Subsistence,People Places & Services Directorate,HRG UK,634774170,-1.32,Not Applicable
Department for Business Innovation and Skills,Intellectual Property Office,20/08/2015,Travel & Subsistence,People Places & Services Directorate,HRG UK,634774170,216.92,Not Applicable
Department for Business Innovation and Skills,Intellectual Property Office,20/08/2015,Travel & Subsistence,International Policy Directorate,HRG UK,634774171,216.92,Not Applicable
Department for Business Innovation and Skills,Intellectual Property Office,19/08/2015,Travel & Subsistence,Patents Directorate,HRG UK,634774171,-216.19,Not Applicable
Department for Business Innovation and Skills,Intellectual Property Office,19/08/2015,Travel & Subsistence,Patents Directorate,HRG UK,634774171,-1.32,Not Applicable
Department for Business Innovation and Skills,Intellectual Property Office,20/08/2015,Travel & Subsistence,Copyright and Enforcement Directorate,HRG UK,634775399,-39.16,Not Applicable
Department for Business Innovation and Skills,Intellectual Property Office,19/08/2015,Travel & Subsistence,Copyright and Enforcement Directorate,HRG UK,634775399,-48.83,Not Applicable
Department for Business Innovation and Skills,Intellectual Property Office,19/08/2015,Travel & Subsistence,Copyright and Enforcement Directorate,HRG UK,634775399,-0.3,Not Applicable
Department for Business Innovation and Skills,Intellectual Property Office,20/08/2015,Travel & Subsistence,Copyright and Enforcement Directorate,HRG UK,634775400,-90.93,Not Applicable
Department for Business Innovation and Skills,Intellectual Property Office,19/08/2015,Travel & Subsistence,Copyright and Enforcement Directorate,HRG UK,634775400,-54.42,Not Applicable
Department for Business Innovation and Skills,Intellectual Property Office,20/08/2015,Travel & Subsistence,Copyright and Enforcement Directorate,HRG UK,634775401,-38.92,Not Applicable
Department for Business Innovation and Skills,Intellectual Property Office,20/08/2015,Travel & Subsistence,Copyright and Enforcement Directorate,HRG UK,634775401,-0.24,Not Applicable
Department for Business Innovation and Skills,Intellectual Property Office,19/08/2015,Travel & Subsistence,People Places & Services Directorate,HRG UK,634775401,-216.92,Not Applicable
Department for Business Innovation and Skills,Intellectual Property Office,20/08/2015,Travel & Subsistence,Copyright and Enforcement Directorate,HRG UK,634775402,-90.39,Not Applicable
Department for Business Innovation and Skills,Intellectual Property Office,20/08/2015,Travel & Subsistence,Copyright and Enforcement Directorate,HRG UK,634775402,-0.54,Not Applicable
Department for Business Innovation and Skills,Intellectual Property Office,19/08/2015,Travel & Subsistence,People Places & Services Directorate,HRG UK,634775402,-110.26,Not Applicable
Department for Business Innovation and Skills,Intellectual Property Office,20/08/2015,Travel & Subsistence,Copyright and Enforcement Directorate,HRG UK,634775403,-38.92,Not Applicable
Department for Business Innovation and Skills,Intellectual Property Office,20/08/2015,Travel & Subsistence,Copyright and Enforcement Directorate,HRG UK,634775403,-0.24,Not Applicable
Department for Business Innovation and Skills,Intellectual Property Office,19/08/2015,Travel & Subsistence,Copyright and Enforcement Directorate,HRG UK,634775403,-54.82,Not Applicable
Department for Business Innovation and Skills,Intellectual Property Office,20/08/2015,Travel & Subsistence,Copyright and Enforcement Directorate,HRG UK,634775404,-90.39,Not Applicable
Department for Business Innovation and Skills,Intellectual Property Office,20/08/2015,Travel & Subsistence,Copyright and Enforcement Directorate,HRG UK,634775404,-0.54,Not Applicable
Department for Business Innovation and Skills,Intellectual Property Office,19/08/2015,Travel & Subsistence,Copyright and Enforcement Directorate,HRG UK,634775404,-45.56,Not Applicable
Department for Business Innovation and Skills,Intellectual Property Office,20/08/2015,Travel & Subsistence,Copyright and Enforcement Directorate,HRG UK,634775405,-38.92,Not Applicable
Department for Business Innovation and Skills,Intellectual Property Office,20/08/2015,Travel & Subsistence,Copyright and Enforcement Directorate,HRG UK,634775405,-0.24,Not Applicable
Department for Business Innovation and Skills,Intellectual Property Office,19/08/2015,Travel & Subsistence,Copyright and Enforcement Directorate,HRG UK,634775405,-54.82,Not Applicable
Department for Business Innovation and Skills,Intellectual Property Office,20/08/2015,Travel & Subsistence,Copyright and Enforcement Directorate,HRG UK,634775406,-90.39,Not Applicable
Department for Business Innovation and Skills,Intellectual Property Office,20/08/2015,Travel & Subsistence,Copyright and Enforcement Directorate,HRG UK,634775406,-0.54,Not Applicable
Department for Business Innovation and Skills,Intellectual Property Office,19/08/2015,Travel & Subsistence,Copyright and Enforcement Directorate,HRG UK,634775406,-3.07,Not Applicable
Department for Business Innovation and Skills,Intellectual Property Office,20/08/2015,Travel & Subsistence,Copyright and Enforcement Directorate,HRG UK,634775407,-0.24,Not Applicable
Department for Business Innovation and Skills,Intellectual Property Office,20/08/2015,Travel & Subsistence,Copyright and Enforcement Directorate,HRG UK,634775407,-38.92,Not Applicable
Department for Business Innovation and Skills,Intellectual Property Office,19/08/2015,Travel & Subsistence,Copyright and Enforcement Directorate,HRG UK,634775407,-26.04,Not Applicable
Department for Business Innovation and Skills,Intellectual Property Office,19/08/2015,Travel & Subsistence,Copyright and Enforcement Directorate,HRG UK,634775407,-0.18,Not Applicable
